Workbook

Sheet Printen tarieven
B2: RICHTLIJN TARIEVEN (graaf) werkzaamheden TELECOM. | K2: jaar/versie: | L2: ='Invoerblad tarieven'!$G$3 -> 2018 v1
B3: op basis van de bodemgesteldheid ten behoeve van de Algemene uitkering gemeentefonds. | L3: KOSTENSPECIFICATIE

Sheet Invoerblad tarieven
B1: Invoerscherm:
B2: Bron: Cobouw Kosteninformatie (GWWkosten.nl) | I2: http://www.gwwkosten.nl/
F3: Betreft jaar en versienummer: | G3: 2018 v1
B4: Omschrijving volgens GWWkosten | C4: Aanvullende informatie | F4: bijgewerkt dd : | G4: 2017-11-22
A5: Straatwerk | B5: GWW Kosten, uurtarieven straatwerk 5% ziekte, loonkosten per uur (excl. Uitv.k en AKWR) | F5: uurtarieven en loonkosten*
F6: actueel tarief: | G6: in te voeren:
B7: Groep D stratenmaker I, inzittende werkbus | F7: =Moederblad!F9 -> 35.88 | G7: 35.88 | I7: 11 Uurtarieven en lonen
B8: Groep B, stratenmaker II, chauffeur werkbus | F8: =Moederblad!F10 -> 34.1 | G8: 34.1 | I8: 11 Uurtarieven en lonen
B9: Transport, bestelauto met open laadbak en autolaadkraan | C9: Uitgangspunt is tarief voor het jaar | D9: 2017 | E9: 9.29 | I9: Indexcijfer 2e kwartaal voorafgaand aan betreffende jaar: 2016
B10: Indexcijfer operationele autolease, nieuwe leasecontracten incl. brandstof, 2e kwartaal van elk jaar, bron CBS (prijsindex 2010 = 100) | D10: ="2e kwartaal " &D9-1 -> 2e kwartaal 2016 | E10: 97.7 | I10: CBS Indexcijfer operationele autolease (periode aanpassen)
D11: ="2e kwartaal "&LEFT(G3,4)-1 -> 2e kwartaal 2017 | E11: 99 | F11: =Moederblad!F11 -> 9.41 | G11: =ROUND(E9/E10*E11,2) -> 9.41 | I11: Indexcijfer 2e kwartaal voorafgaand aan betreffende jaar
A13: Materiaal | B13: GWW Kosten: | F13: Funderingslagen en elementverhardingen | M13: =L13-1 -> -1
F14: actueel tarief: | G14: in te voeren:
B15: Straatstenen, gebakken
B16: Straatklinkers formaat WF tot 5000 stuks | C16: Kwaliteit A4-12, per 1000 | F16: =Moederblad!D33 -> 350 | G16: 350 | I16: Leveren straatklinkers
B17: Straatklinkers formaat KK 80 tot 5000 stuks | C17: Kwaliteit A4-12, per 1000 | F17: =Moederblad!D34 -> 490 | G17: 490 | I17: Leveren straatklinkers
B19: Straatstenen, beton:
B20: Betonstraatstenen keiformaat, heide, 210 x 105 x 80 mm | C20: KF (keiformaat), volle vracht, per 1000 | F20: =Moederblad!D35 -> 225 | G20: 225 | I20: Leveren betonstraatstenen
B22: Tegels beton:
B23: Trottoirtegels, grijs, 300 x 300 x 45 mm | C23: Per m2, komo, volle vracht | F23: =Moederblad!H33 -> 8.03 | G23: 8.03 | I23: Leveren betontegel, 300 x 300 mm
B24: Trottoirtegels, grijs, 300 x 300 x 80 mm | C24: Per m2, komo, volle vracht | F24: =Moederblad!H34 -> 11.6 | G24: 11.6 | I24: Leveren betontegel, 300 x 300 mm
B26: Straatzand:
B27: Straatzand 10 - 25 m3 | C27: Per m3 | F27: =Moederblad!L33 -> 11.1 | G27: 11.1 | I27: Leveren grond
A29: Groen | B29: GWW Kosten: | F29: Groenvoorzieningen
F30: actueel tarief: | G30: in te voeren:
B31: Hovenier A, loongroep 4, schaal 8, chauffeur werkbus | C31: Uurtarief Cultuurtechnisch medewerker | F31: =Moederblad!F20 -> 30.6 | G31: 30.6 | I31: Uurtarieven groenwerk en kust- en oeverwerk
B32: Transport, bestelauto met open laadbak en autolaadkraan | C32: Overgenomen van Straatwerk (CBS-index) | F32: =Moederblad!F21 -> 9.41 | G32: =G11 -> 9.41 | I32: Direct gekoppeld aan tarief bij Straatwerk
B34: Bermmengsel | C34: Graszaad, prijs per kg | F34: =Moederblad!D49 -> 6.43 | G34: 6.43 | I34: Graszaad en groenbemesters
B35: Gazonmengsel | C35: Graszaad, prijs per kg | F35: =Moederblad!D50 -> 7.15 | G35: 7.15 | I35: Graszaad en groenbemesters
B37: * Bij een juiste invoer en acceptatie zijn de tarieven in de kolom: - actueel tarief en - in te voeren gelijk !!!

Sheet Moederblad
A2: RICHTLIJN TARIEVEN | I2: jaar/versie: | J2: ='Invoerblad tarieven'!$G$3 -> 2018 v1
I3: KOSTENSPECIFICATIE
A5: 1) UITVOERINGSKOSTEN | J5: wijzigt jaarlijks, zie blad Invoerblad Tarieven
J6: Bedrag gebruikt voor berekening verder in dit blad
A7: a) Ploegkosten per | B7: 1 juli voorgaand jaar | F7: Per uur | J7: Bedrag gebruikt voor berekening in overige bladen
A8: Bron, zie Invoerblad Tarieven
A9: ='Invoerblad tarieven'!B7 -> Groep D stratenmaker I, inzittende werkbus | F9: ='Invoerblad tarieven'!G7 -> 35.88
A10: ='Invoerblad tarieven'!B8 -> Groep B, stratenmaker II, chauffeur werkbus | F10: ='Invoerblad tarieven'!G8 -> 34.1
A11: ='Invoerblad tarieven'!B9 -> Transport, bestelauto met open laadbak en autolaadkraan | F11: ='Invoerblad tarieven'!G11 -> 9.41
F12: --------------------+
F13: =SUM(F9:F11) -> 79.39
A14: Alg. kosten winst/risico aannemer | E14: =12/100 -> 0.12 | F14: =ROUND(E14*F13,2) -> 9.53
F15: ---------------------+
D16: TOTAAL per ploeguur | F16: =SUM(F13:F14) -> 88.92 | G16: TOTAAL per manuur | I16: =ROUND(F16/2,2) -> 44.46
A18: kosten loon groen (Cultuurtechnisch medewerker) | F18: Per uur
A20: ='Invoerblad tarieven'!B31 -> Hovenier A, loongroep 4, schaal 8, chauffeur werkbus | F20: ='Invoerblad tarieven'!G31 -> 30.6 | G20: (met 5% ziekteverzuim)
A21: ='Invoerblad tarieven'!B32 -> Transport, bestelauto met open laadbak en autolaadkraan | F21: ='Invoerblad tarieven'!G32 -> 9.41
F22: --------------------+
F23: =SUM(F20:F21) -> 40.01
A24: Alg. kosten winst/risico aannemer | E24: =12/100 -> 0.12 | F24: =ROUND(E24*F23,2) -> 4.8
F25: ---------------------+
D26: TOTAAL per manuur | F26: =SUM(F23:F24) -> 44.81 | I26: =ROUND(F26,2) -> 44.81
A28: b) kosten materiaal
A29: Berekening materiaalprijzen, incl 15% magazijntoeslag
A30: KLINKERS | F30: TEGELS | J30: Zand p/ m3
A31: materiaalverhouding per 1000 | C31: Aantal/m2 | D31: Bedrag | F31: materiaalverhouding per m2 | H31: Bedrag | L31: per m3
A33: waal | B33: 0.2 | C33: 100 | D33: ='Invoerblad tarieven'!G16 -> 350 | F33: Dik 45 mm | G33: 0.95 | H33: ='Invoerblad tarieven'!G23 -> 8.03 | J33: Zand | L33: ='Invoerblad tarieven'!G27 -> 11.1
A34: kei | B34: 0.2 | C34: 50 | D34: ='Invoerblad tarieven'!G17 -> 490 | F34: Dik 80 mm | G34: 0.05 | H34: ='Invoerblad tarieven'!G24 -> 11.6
A35: beton | B35: 0.6 | C35: 44 | D35: ='Invoerblad tarieven'!G20 -> 225
A36: Klinkers, per m2 | B36: =SUM(B33:B35) -> 1 | D36: =((B33*D33/1000*C33)+(B34*D34/1000*C34)+(B35*D35/1000*C35)) -> 17.84 | F36: Tegels, gemiddeld | G36: =SUM(G33:G35) -> 1 | H36: =((G33*H33)+(G34*H34)) -> 8.2085 | J36: Zand per m3 | L36: =L33 -> 11.1
A37: Magazijnopslag | B37: 0.15 | D37: =D36*B37 -> 2.676 | F37: Magazijnopslag | G37: 0.15 | H37: =H36*G37 -> 1.231275 | J37: Magazijnopslag | K37: 0.15 | L37: =L36*K37 -> 1.665
A38: Klinkers, incl. magaziinopslag, per m2 | D38: =+D37+D36 -> 20.516 | F38: Tegels, incl. mag. opsl., p/m2 | H38: =+H37+H36 -> 9.439775 | J38: Zand per m3 incl. mag.opsl | L38: =+L37+L36 -> 12.765
A41: Per m2 bestating herstel | C41: Breuk % | F41: Materiaalkosten 5% breuk en 5 cm zand aanvullen
A42: Klinkers | C42: 0.05 | D42: =ROUND(C42*D38,2) -> 1.03 | F42: Klinkers | G42: m2 | H42: =D42+D44 -> 1.67
A43: Tegels | C43: 0.05 | D43: =ROUND(C43*H38,2) -> 0.47 | F43: Tegels | G43: m2 | H43: =D43+D44 -> 1.11
A44: Zand | B44: 5 cm aanvullen | C44: 0.05 | D44: =ROUND(C44*L38,2) -> 0.64 | F44: Trottoirband | G44: m1 | H44: =H43 -> 1.11
F45: Opsluitband | G45: m1 | H45: =H44 -> 1.11
A47: kosten materiaal groen | D47: Zaad kosten | F47: gebruik | G47: kosten | H47: kosten
D48: per kg | F48: kg/are | G48: per are | H48: per m2
A49: ='Invoerblad tarieven'!B34 -> Bermmengsel | D49: ='Invoerblad tarieven'!G34 -> 6.43 | F49: 0.75 | G49: =D49*F49 -> 4.8225 | H49: =G49/100 -> 0.048225
A50: ='Invoerblad tarieven'!B35 -> Gazonmengsel | D50: ='Invoerblad tarieven'!G35 -> 7.15 | F50: 1.5 | G50: =D50*F50 -> 10.725 | H50: =G50/100 -> 0.10725
A51: Gemiddelde kosten berm/gazon (elk 50%) | H51: =(H50+H49)/2 -> 0.0777375
A52: Magazijnopslag | B52: 0.15 | H52: =H51*0.15 -> 0.011660625
A53: Gemiddelde kosten berm/gazon graszaad | H53: =ROUND((H51+H52),2) -> 0.09
A55: c) kosten totaal
A56: kosten herstraten | C56: Eenheid | D56: Reparatie- | E56: Kosten | F56: materiaal | G56: Gemiddelde toeslag | J56: Uitvoeringskosten
A57: 1e herstel | D57: norm | E57: Uitvoering | F57: kosten per eenheid | G57: i.v.m. verrekening | J57: Incl. materiaal
A58: (A+B) | D58: ploeguur | E58: Ploegkosten | F58: (berekening | G58: GATVERGROTING (m.u.v.tarief D) | J58: incl. gatvergroting
D59: per eenheid | E59: per eenheid | F59: hierboven) | J59: per eenheid
A61: KLINKERS | B61: <15 m2 (lasgat) | C61: m2 | D61: 0.51 | E61: =ROUND(D61*$I$16,2) -> 22.67 | F61: =H42 -> 1.67 | G61: 0.2 | J61: =ROUND((E61+F61)*(1+G61),2) -> 29.21
A62: KLINKERS | B62: >15 m2 (geul) | C62: m2 | D62: 0.41 | E62: 18.23 | F62: =H42 -> 1.67 | G62: 0.2 | J62: =ROUND((E62+F62)*(1+G62),2) -> 23.88
A63: KLINKERS | B63: >100 m2 (geul) | C63: m2 | D63: 0.36 | E63: 16.01 | F63: =H42 -> 1.67 | G63: 0.2 | J63: 21.22
A64: TEGELS | B64: <15 m2 (lasgat) | C64: m2 | D64: 0.41 | E64: 18.23 | F64: =H43 -> 1.11 | G64: 0.2 | J64: 23.21
A65: TEGELS | B65: >15 m2 (geul) | C65: m2 | D65: 0.31 | E65: 13.78 | F65: =H43 -> 1.11 | G65: 0.2 | J65: 17.87
A66: TEGELS | B66: >100 m2 (geul) | C66: m2 | D66: 0.29 | E66: 12.89 | F66: =H43 -> 1.11 | G66: 0.2 | J66: 16.8
A67: TROTTOIRBAND | B67: (tegelmat.) | C67: m1 | D67: 0.22 | E67: 9.78 | F67: =H44 -> 1.11 | J67: 10.89
A68: OPSLUITBAND | B68: (tegelmat.) | C68: m1 | D68: 0.17 | E68: 7.56 | F68: =H44 -> 1.11 | J68: =ROUND((E68+F68)*(1+G68),2) -> 8.67
A69: ZAAI KLAAR MAKEN | B69: 100m2 berm, gazon | C69: 100m2 | D69: =1.59 -> 1.59 | E69: =D69*$F$26 -> 71.2479
A70: INZAAIEN | B70: 100m2 berm, gazon | C70: 100m2 | D70: =0.945 -> 0.945 | E70: =D70*$F$26 -> 42.34545
A71: Gemiddeld berm/gazon zaaiklaarm+ zaaien | C71: 1m2 | E71: =ROUND((E70+E69)/100,2) -> 1.14 | F71: =H53 -> 0.09 | G71: 0.5 | J71: =ROUND((E71+F71)*(1+G71),2) -> 1.85
A73: Bodemgesteldheid | B73: 5 categorieën
A74: Categorie | B74: Omschrijving
A75: 1 | B75: minder dan 50% slechte bodem
A76: 2 | B76: vanaf 50 tot 60% slechte bodem
A77: 3 | B77: vanaf 60 tot 70% slechte bodem
A78: 4 | B78: vanaf 70 tot 80% slechte bodem
A79: 5 | B79: vanaf 80% slechte bodem
A81: 2) ONDERHOUD | B81: na herstel, gedurende het 1e jaar, in % van de totale uitvoeringskosten, per m2
A82: Categorie bodemgesteldheid: | E82: 1 | F82: 2 | G82: 3 | H82: 4 | I82: 5
A83: Percentage slechte grond : | E83: <50% | F83: 50-60% | G83: 60-70% | H83: 70-80% | I83: >80%
A84: Omschrijving
A85: RIJWEGEN | B85: (klinkers, tegels) | E85: 0.08 | F85: 0.09 | G85: 0.12 | H85: 0.18 | I85: 0.2
A86: VOET-FIETSPADEN | B86: (tegels, klinkers) | E86: 0.05 | F86: 0.0575 | G86: 0.08 | H86: 0.1325 | I86: 0.15
A89: 3) DEGENERATIE | B89: De vergoeding voor versnelde degeneratie (levensduurverkorting) van het verhardingsoppervlak als gevolg van graafwerkzaamheden
B90: na herstel in % van de totale uitvoeringskosten, per m1 sleuf
A91: Categorie bodemgesteldheid: | E91: 1 | F91: 2 | G91: 3 | H91: 4 | I91: 5
A92: Percentage slechte grond : | E92: <50% | F92: 50-60% | G92: 60-70% | H92: 70-80% | I92: >80%
A93: Omschrijving
A94: KLINKERS | B94: < 15 m2 (per lasgat) | E94: 0.32 | F94: 0.45 | G94: 0.84 | H94: 1.29 | I94: 1.58
A95: KLINKERS | B95: > 15 m2 (per m1 geul) | E95: 0.13 | F95: 0.1825 | G95: 0.34 | H95: 0.6775 | I95: 0.79
A96: TEGELS | B96: < 15 m2 (per lasgat) | E96: 0 | F96: 0.04 | G96: 0.16 | H96: 0.46 | I96: 0.56
A97: TEGELS | B97: > 15 m2 (per m1 geul) | E97: 0 | F97: 0.01 | G97: 0.04 | H97: 0.49 | I97: 0.64
A99: Tariefgroep | B99: Omschrijving | F99: De gemeente berekent aan aanbieder / netbeheerder
A100: A | B100: Herstel en onderhoud, uitgevoerd door de gemeente | F100: UK | G100: OK | H100: DK | I100: BK
A101: B1 | B101: Herstel en onderhoud door aanbieder / netbeheerder | H101: DK | I101: BK
A102: B2 | B102: Herstel door aanbieder / netbeheerder, onderhoud door gemeente | G102: OK | H102: DK | I102: BK
A103: C | B103: Herstel door de gemeente voorafgaand aan gehele herbestrating *) | F103: UK (gereduceerd) | G103: OK | I103: BK
A104: C1 | B104: Herstel en onderhoud door de aanbieder voorafgaand aan gehele herbestrating *) | I104: BK
A105: C2 | B105: Herstel door de aanbieder en onderhoud door de gemeente voorafgaand aan gehele herbestrating *) | G105: OK | I105: BK
A106: D | B106: Overige tarieven (berm/gazon, asfalt, struiken) | F106: Afhankelijk tarief | I106: BK
A107: Onderhoudsperiode: | B107: De onderhoudsperiode is 12 maanden, onderhoud door gemeente of aanbieder/netbeheerder.
A108: Garantie: | B108: Indien herstel door aanbieder / netbeheerder kan de gemeente een beroep doen op garantie conform de RAW garantiebepaling gedurende de onderhoudsperiode.
A109: *) Tarieven C, C1, C2 | B109: De tarieven C, C1 en C2 zijn alleen van toepassing indien vooraf afgestemd en de aanbieder/netbeheerder maximaal 1 jaar voor de geplande uitvoering van de algehele herbestrating werkt. Reductie op UK door gemeente. Geen DK.
A110: Wijzigingen per 1-1-2018:
A111: - Deze tarieven kunnen ook voor netbeheerders, niet zijnde een aanbieder van een elektronisch communicatienet werk worden toegepast, in welk geval 'aanbieder' ook staat voor 'netbeheerder'.
A112: - Tarieven voor triottoir-, oplsluit/koprolband verplaatst van tarief D naar A, B1, B2, C, C1 en C2
A113: - Naast Tarief C (herstel vooruitlopend aan herbestrating) is toegevoegd C1 (bij herstel en onderhoud door aanbieder) en C2 (herstel door aanbieder en onderhoud door gemeente).
A114: Deze C-tarieven gelden alleen indien vooraf afgestemd en de aanbieder maximaal 1 jaar voor de geplande uitvoering van de algehele herbestrating werkt.
A115: - Bermen/gazon berekening herzien, er zijn nu 2 varianten: herstel door de gemeente en herstel door aanbieder/netbeheerder, tarief t/m 50m2 is vervallen
A116: - De tarieven voor troitoirbanden, oplslui/koprolbanden zijn verplaatst van tarief D naar A, B1, B2, C, C1 en C2, zodat deze beter meelopen in de verrekening.

Sheet < 50% slechte bodem
A2: RICHTLIJN TARIEVEN (GRAAF)WERKZAAMHEDEN TELECOM | K2: Bijlage A1
I3: Tarievenblad | K3: jaar/versie: | L3: ='Invoerblad tarieven'!$G$3 -> 2018 v1
A5: 1. Gegevens gemeente:
A6: Bodemgesteldheid categorie: 1. | D6: Onderhoud | G6: Degeneratie | K6: Beheerskosten:
D7: factor | E7: rijweg | F7: voetpad | G7: Klinker: < 15 m2 | H7: Klinker: > 15 m2 | I7: Tegels: < 15 m2 | J7: Tegels: > 15 m2 | K7: algemeen
A9: minder dan 50% slechte bodem: | D9: 0 | E9: 0.08 | F9: 0.05 | G9: 0.32 | H9: 0.13 | I9: 0 | J9: 0 | K9: =6/100 -> 0.06
A10: 2. Overzicht kostenopbouw:
E11: Klinkers: | H11: Tegels: | K11: Trottoit- | L11: Opsluit- | M11: Berm en
E12: Rijweg | F12: =80/100 -> 0.8 | H12: Voetpad | I12: =95/100 -> 0.95 | K12: band | L12: band | M12: Gazon
E13: Voetpad | F13: =20/100 -> 0.2 | H13: Rijweg | I13: =5/100 -> 0.05
E14: <15 m2 | F14: >15 m2 | G14: >100 m2 | H14: <15 m2 | I14: >15 m2 | J14: >100 m2 | K14: Eenheid: m1 | L14: Eenheid: m1 | M14: Eenheid: m2
A15: 1. Uitvoering: | C15: per m2 | E15: =Moederblad!$J$61 -> 29.21 | F15: =Moederblad!$J$62 -> 23.88 | G15: =Moederblad!$J$63 -> 21.22 | H15: =Moederblad!$J$64 -> 23.21 | I15: =Moederblad!$J$65 -> 17.87 | J15: =Moederblad!$J$66 -> 16.8 | K15: =Moederblad!J67 -> 10.89 | L15: =Moederblad!J68 -> 8.67 | M15: =Moederblad!J71 -> 1.85
A16: 2. Onderhoud: | C16: per m2 | E16: =ROUND($F$12*($E$9*E15)+$F$13*($F$9*$E$15),2) -> 2.16 | F16: =ROUND($F$12*($E$9*$F$15)+$F$13*($F$9*$F$15),2) -> 1.77 | G16: =ROUND($F$12*($E$9*$G$15)+$F$13*($F$9*$G$15),2) -> 1.57 | H16: =ROUND($I$12*($F$9*$H$15)+$I$13*($E$9*$H$15),2) -> 1.2 | I16: =ROUND($I$12*($F$9*$I$15)+$I$13*($E$9*$I$15),2) -> 0.92 | J16: =ROUND($I$12*($F$9*$J$15)+$I$13*($E$9*$J$15),2) -> 0.87
A17: 3a. Degeneratie: | C17: per reparatie | E17: =ROUND(($G$9*$E$15)/1.185,2) -> 7.89 | H17: 0
A18: 3b. Degeneratie: | C18: per m1 sleuflengte | F18: =ROUND(($H$9*$F$15)/1.185,2) -> 2.62 | G18: =ROUND(($H$9*$G$15)/1.185,2) -> 2.33 | I18: =ROUND(($J$9*$I$15)/1.185,2) -> 0 | J18: 0
A19: 4. Beheerskosten: | C19: per m2 | E19: =ROUND($K$9*$E$15,2) -> 1.75 | F19: =ROUND($K$9*$F$15,2) -> 1.43 | G19: =ROUND($K$9*$G$15,2) -> 1.27 | H19: =ROUND($K$9*$H$15,2) -> 1.39 | I19: =ROUND($K$9*$I$15,2) -> 1.07 | J19: =ROUND($K$9*$J$15,2) -> 1.01 | K19: =ROUND($K$9*$K$15,2) -> 0.65 | L19: =ROUND($K$9*$L$15,2) -> 0.52 | M19: =ROUND($K$9*$M$15,2) -> 0.11
A20: 3. Tarieven:
A21: Tarief: A. | B21: Herstel, onderhoud, uitgevoerd door de gemeente inclusief beheerskosten | H21: Degeneratie: | K21: Beheerskosten:
C23: A1 | D23: klinkers | E23: < 15 m2 | F23: =$E$15+$E$16 -> 31.37 | G23: per m2 | H23: + per reparatie | J23: =$E$17 -> 7.89 | K23: < 15 m2 | L23: =+$E$19 -> 1.75 | M23: per m2
C24: A2 | D24: tegels | E24: < 15 m2 | F24: =$H$15+$H$16 -> 24.41 | G24: per m2 | H24: + per reparatie | J24: =$H$17 -> 0 | K24: < 15 m2 | L24: =+$H$19 -> 1.39 | M24: per m2
C25: A3 | D25: klinkers | E25: > 15 m2 | F25: =$F$15+$F$16 -> 25.65 | G25: per m2 | H25: + per m1 sleuflengte | J25: =$F$18 -> 2.62 | K25: > 15 m2 | L25: =+$F$19 -> 1.43 | M25: per m2
C26: A4 | D26: tegels | E26: > 15 m2 | F26: =$I$15+$I$16 -> 18.79 | G26: per m2 | H26: + per m1 sleuflengte | J26: =$I$18 -> 0 | K26: > 15 m2 | L26: =+$I$19 -> 1.07 | M26: per m2
C27: A5 | D27: klinkers | E27: > 100 m2 | F27: =$G$15+$G$16 -> 22.79 | G27: per m2 | H27: + per m1 sleuflengte | J27: =$G$18 -> 2.33 | K27: > 100 m2 | L27: =+$G$19 -> 1.27 | M27: per m2
C28: A6 | D28: tegels | E28: > 100 m2 | F28: =$J$15+$J$16 -> 17.67 | G28: per m2 | H28: + per m1 sleuflengte | J28: =$J$18 -> 0 | K28: > 100 m2 | L28: =+$J$19 -> 1.01 | M28: per m2
C29: A7 | D29: trottoirband | F29: =K15 -> 10.89 | G29: per m1 | H29: n.v.t | J29: 0 | L29: =$K$19 -> 0.65 | M29: per m1
C30: A8 | D30: opsluit/koprolband | F30: =+L15 -> 8.67 | G30: per m1 | H30: n.v.t. | J30: 0 | L30: =$L$19 -> 0.52 | M30: per m1
A32: Tarief: B1. | B32: Herstel en onderhoud door de aanbieder ( 12 maanden garantie) | H32: Degeneratie: | K32: Beheerskosten:
C34: B1 | D34: klinkers | E34: < 15 m2 | F34: 0 | G34: per m2 | H34: + per reparatie | J34: =$E$17 -> 7.89 | K34: < 15 m2 | L34: =+$E$19 -> 1.75 | M34: per m2
C35: B2 | D35: tegels | E35: < 15 m2 | F35: 0 | G35: per m2 | H35: + per reparatie | J35: =$H$17 -> 0 | K35: < 15 m2 | L35: =+$H$19 -> 1.39 | M35: per m2
C36: B3 | D36: klinkers | E36: > 15 m2 | F36: 0 | G36: per m2 | H36: + per m1 sleuflengte | J36: =$F$18 -> 2.62 | K36: > 15 m2 | L36: =+$F$19 -> 1.43 | M36: per m2
C37: B4 | D37: tegels | E37: > 15 m2 | F37: 0 | G37: per m2 | H37: + per m1 sleuflengte | J37: =$I$18 -> 0 | K37: > 15 m2 | L37: =+$I$19 -> 1.07 | M37: per m2
C38: B7 | D38: trottoirband | F38: 0 | G38: per m1 | H38: n.v.t | J38: 0 | L38: =$K$19 -> 0.65 | M38: per m1
C39: B8 | D39: opsluit/koprolband | F39: 0 | G39: per m1 | H39: n.v.t. | J39: 0 | L39: =$L$19 -> 0.52 | M39: per m1
A41: Tarief: B2. | B41: Herstel door de aanbieder (12 mnd.garantie) en onderhoud door de gemeente | H41: Degeneratie: | K41: Beheerskosten:
C43: B1 | D43: klinkers | E43: < 15 m2 | F43: =$E$16 -> 2.16 | G43: per m2 | H43: + per reparatie | J43: =$E$17 -> 7.89 | K43: < 15 m2 | L43: =+$E$19 -> 1.75 | M43: per m2
C44: B2 | D44: tegels | E44: < 15 m2 | F44: =$H$16 -> 1.2 | G44: per m2 | H44: + per reparatie | J44: =$H$17 -> 0 | K44: < 15 m2 | L44: =+$H$19 -> 1.39 | M44: per m2
C45: B3 | D45: klinkers | E45: > 15 m2 | F45: =$F$16 -> 1.77 | G45: per m2 | H45: + per m1 sleuflengte | J45: =$F$18 -> 2.62 | K45: > 15 m2 | L45: =+$F$19 -> 1.43 | M45: per m2
C46: B4 | D46: tegels | E46: > 15 m2 | F46: =$I$16 -> 0.92 | G46: per m2 | H46: + per m1 sleuflengte | J46: =$I$18 -> 0 | K46: > 15 m2 | L46: =+$I$19 -> 1.07 | M46: per m2
C47: B7 | D47: trottoirband | F47: 0 | G47: per m1 | H47: n.v.t | J47: 0 | L47: =$K$19 -> 0.65 | M47: per m1
C48: B8 | D48: opsluit/koprolband | F48: 0 | G48: per m1 | H48: n.v.t. | J48: 0 | L48: =$L$19 -> 0.52 | M48: per m1
A50: Tarief: C. | B50: Herstel door de gemeente voorafgaand aan gehele herbestrating. | H50: Beheerskosten:
C52: C1 | D52: klinkers | E52: < 15 m2 | F52: =($E$15/2)/1.2+$E$16 -> 14.33083333 | G52: per m2 | H52: < 15 m2 | I52: =+$E$19 -> 1.75 | J52: per m2
C53: C2 | D53: tegels | E53: < 15 m2 | F53: =($H$15/2)/1.2+$H$16 -> 10.87083333 | G53: per m2 | H53: < 15 m2 | I53: =+$H$19 -> 1.39 | J53: per m2
C54: C3 | D54: klinkers | E54: > 15 m2 | F54: =($F$15/2)/1.2+$F$16 -> 11.72 | G54: per m2 | H54: > 15 m2 | I54: =+$F$19 -> 1.43 | J54: per m2
C55: C4 | D55: tegels | E55: > 15 m2 | F55: =($I$15/2)/1.2+$I$16 -> 8.365833333 | G55: per m2 | H55: > 15 m2 | I55: =+$I$19 -> 1.07 | J55: per m2
C56: C7 | D56: trottoirband | F56: =($K$15/2)/1.2 -> 4.5375 | G56: per m1 | I56: =$K$19 -> 0.65 | J56: per m1
C57: C8 | D57: opsluit/koprolband | F57: =($L$15/2)/1.2 -> 3.6125 | G57: per m1 | I57: =$L$19 -> 0.52 | J57: per m1
A59: Tarief: C1 | B59: Herstel en onderhoud door de aanbieder ( 12 maanden garantie) voorafgaand aan gehele herbestrating. | H59: Beheerskosten:
C61: C1 | D61: klinkers | E61: < 15 m2 | F61: 0 | G61: per m2 | H61: < 15 m2 | I61: =+$E$19 -> 1.75 | J61: per m2
C62: C2 | D62: tegels | E62: < 15 m2 | F62: 0 | G62: per m2 | H62: < 15 m2 | I62: =+$H$19 -> 1.39 | J62: per m2
C63: C3 | D63: klinkers | E63: > 15 m2 | F63: 0 | G63: per m2 | H63: > 15 m2 | I63: =+$F$19 -> 1.43 | J63: per m2
C64: C4 | D64: tegels | E64: > 15 m2 | F64: 0 | G64: per m2 | H64: > 15 m2 | I64: =+$I$19 -> 1.07 | J64: per m2
C65: C7 | D65: trottoirband | F65: 0 | G65: per m1 | I65: =$K$19 -> 0.65 | J65: per m1
C66: C8 | D66: opsluit/koprolband | F66: 0 | G66: per m1 | I66: =$L$19 -> 0.52 | J66: per m1
A68: Tarief: C2 | B68: Herstel door de aanbieder (12 mnd.garantie) en onderhoud door de gemeente voorafgaand aan gehele herbestrating. | H68: Beheerskosten:
C70: C1 | D70: klinkers | E70: < 15 m2 | F70: =($E$16) -> 2.16 | G70: per m2 | H70: < 15 m2 | I70: =+$E$19 -> 1.75 | J70: per m2
C71: C2 | D71: tegels | E71: < 15 m2 | F71: =$H$16 -> 1.2 | G71: per m2 | H71: < 15 m2 | I71: =+$H$19 -> 1.39 | J71: per m2
C72: C3 | D72: klinkers | E72: > 15 m2 | F72: =$F$16 -> 1.77 | G72: per m2 | H72: > 15 m2 | I72: =+$F$19 -> 1.43 | J72: per m2
C73: C4 | D73: tegels | E73: > 15 m2 | F73: =$I$16 -> 0.92 | G73: per m2 | H73: > 15 m2 | I73: =+$I$19 -> 1.07 | J73: per m2
C74: C7 | D74: trottoirband | F74: 0 | G74: per m1 | I74: =$K$19 -> 0.65 | J74: per m1
C75: C8 | D75: opsluit/koprolband | F75: 0 | G75: per m1 | I75: =$L$19 -> 0.52 | J75: per m1
A77: Tarief: D. | B77: Overige tarieven, herstel door gemeente of netbeheerder zoals aangegeven | I77: Beheerskosten
C79: D3 | D79: berm / gazon, herstel door gemeente | H79: =M15 -> 1.85 | I79: =M19 -> 0.11 | J79: per m2
C80: D4 | D80: berm / gazon, herstel door aanbieder | H80: 0 | I80: =M19 -> 0.11 | J80: per m2
C81: D5 | D81: bomen en struiken | H81: werkelijke kosten
C82: D6 | D82: asfalt | H82: werkelijke kosten
A84: BTW is niet verschuldigd. Zie: Besluit van de Staatsecretaris van Financien dd 19 februari 2004, nr. CPP2003/3098M.
A85: Het tarief oppervlak (m2) straatwerk of berm wordt bepaaldt door vermeningvuldiging van lengte x breedte van de sleuf of lasgat ( gatvergroting zit in tarief)
A86: Per project is het aantal m2 op de straatwerkbon bepalend voor de toepassing van tarief <15 m2 of > 15 m2. Klinkers en tegels mogen niet bijelkaar worden opgeteld
A87: Meerdere kleine opbrekingen binnen 10 meter, aan één wegkant, worden aangemerkt als één reparatie.
A89: Wijzigingen per 1-1-2018:
A90: - Deze tarieven kunnen ook voor netbeheerders, niet zijnde een aanbieder van een elektronisch communicatienet werk worden toegepast, in welk geval 'aanbieder' ook staat voor 'netbeheerder';
A91: - Tarieven voor triottoir-, oplsluit/koprolband verplaatst van tarief D naar A, B1, B2, C, C1 en C2;
A92: - Naast Tarief C (herstel vooruitlopend aan herbestrating) is toegevoegd C1 (bij herstel en onderhoud door aanbieder) en C2 (herstel door aanbieder en onderhoud door gemeente). Deze C-tarieven gelden alleen indien vooraf afgestemd en de aanbieder maximaal 1 jaar voor de geplande uitvoering van de algehele herbestrating werkt.
A93: - Toegevoegd is een richtlijn voor het hanteren van de tarieven indien 'van band tot band' bestraat wordt (tarieven A, B1 en B2 delen door 1,2 en geen degeneratiekosten berekenen). Er is afgezien van het formaliseren van aparte tarieven voor deze gevallen.
A94: - Bermen/gazon: uitvoeringskosten per m2 herberekend, tarief t/m 50m2 vervallen (alleen nog per m2), 2 varianten: herstel door gemeente en herstel door netbeheerder.

Sheet 50-60% slechte bodem
A2: RICHTLIJN TARIEVEN (GRAAF)WERKZAAMHEDEN TELECOM | K2: Bijlage A2
I3: Tarievenblad | K3: jaar/versie: | L3: ='Invoerblad tarieven'!$G$3 -> 2018 v1
A5: 1. Gegevens gemeente:
A6: Bodemgesteldheid categorie: 2. | D6: Onderhoud | G6: Degeneratie | K6: Beheerskosten:
D7: factor | E7: rijweg | F7: voetpad | G7: Klinker: < 15 m2 | H7: Klinker: > 15 m2 | I7: Tegels: < 15 m2 | J7: Tegels: > 15 m2 | K7: algemeen
A9: vanaf 50% tot 60% slechte bodem | D9: 0.25 | E9: 0.09 | F9: 0.0575 | G9: 0.45 | H9: 0.1825 | I9: 0.04 | J9: 0.01 | K9: =6/100 -> 0.06
A10: 2. Overzicht kostenopbouw:
E11: Klinkers: | H11: Tegels: | K11: Trottoit- | L11: Opsluit- | M11: Berm en
E12: Rijweg | F12: =80/100 -> 0.8 | H12: Voetpad | I12: =95/100 -> 0.95 | K12: band | L12: band | M12: Gazon
E13: Voetpad | F13: =20/100 -> 0.2 | H13: Rijweg | I13: =5/100 -> 0.05
E14: <15 m2 | F14: >15 m2 | G14: >100 m2 | H14: <15 m2 | I14: >15 m2 | J14: >100 m2 | K14: Eenheid: m1 | L14: Eenheid: m1 | M14: Eenheid: m2
A15: 1. Uitvoering: | C15: per m2 | E15: =Moederblad!$J$61 -> 29.21 | F15: =Moederblad!$J$62 -> 23.88 | G15: =Moederblad!$J$63 -> 21.22 | H15: =Moederblad!$J$64 -> 23.21 | I15: =Moederblad!$J$65 -> 17.87 | J15: =Moederblad!$J$66 -> 16.8 | K15: =Moederblad!J67 -> 10.89 | L15: =Moederblad!J68 -> 8.67 | M15: =Moederblad!J71 -> 1.85
A16: 2. Onderhoud: | C16: per m2 | E16: =ROUND($F$12*($E$9*E15)+$F$13*($F$9*$E$15),2) -> 2.44 | F16: =ROUND($F$12*($E$9*$F$15)+$F$13*($F$9*$F$15),2) -> 1.99 | G16: =ROUND($F$12*($E$9*$G$15)+$F$13*($F$9*$G$15),2) -> 1.77 | H16: =ROUND($I$12*($F$9*$H$15)+$I$13*($E$9*$H$15),2) -> 1.37 | I16: =ROUND($I$12*($F$9*$I$15)+$I$13*($E$9*$I$15),2) -> 1.06 | J16: =ROUND($I$12*($F$9*$J$15)+$I$13*($E$9*$J$15),2) -> 0.99
A17: 3a. Degeneratie: | C17: per reparatie | E17: =ROUND(($G$9*$E$15)/1.185,2) -> 11.09 | H17: =ROUND(($I$9*$H$15)/1.185,2) -> 0.78
A18: 3b. Degeneratie: | C18: per m1 sleuflengte | F18: =ROUND(($H$9*$F$15)/1.185,2) -> 3.68 | G18: =ROUND(($H$9*$G$15)/1.185,2) -> 3.27 | I18: =ROUND(($J$9*$I$15)/1.185,2) -> 0.15 | J18: =ROUND(($J$9*$J$15)/1.185,2) -> 0.14
A19: 4. Beheerskosten: | C19: per m2 | E19: =ROUND($K$9*$E$15,2) -> 1.75 | F19: =ROUND($K$9*$F$15,2) -> 1.43 | G19: =ROUND($K$9*$G$15,2) -> 1.27 | H19: =ROUND($K$9*$H$15,2) -> 1.39 | I19: =ROUND($K$9*$I$15,2) -> 1.07 | J19: =ROUND($K$9*$J$15,2) -> 1.01 | K19: =ROUND($K$9*$K$15,2) -> 0.65 | L19: =ROUND($K$9*$L$15,2) -> 0.52 | M19: =ROUND($K$9*$M$15,2) -> 0.11
A20: 3. Tarieven:
A21: Tarief: A. | B21: Herstel, onderhoud, uitgevoerd door de gemeente inclusief beheerskosten | H21: Degeneratie: | K21: Beheerskosten:
C23: A1 | D23: klinkers | E23: < 15 m2 | F23: =$E$15+$E$16 -> 31.65 | G23: per m2 | H23: + per reparatie | J23: =$E$17 -> 11.09 | K23: < 15 m2 | L23: =+$E$19 -> 1.75 | M23: per m2
C24: A2 | D24: tegels | E24: < 15 m2 | F24: =$H$15+$H$16 -> 24.58 | G24: per m2 | H24: + per reparatie | J24: =$H$17 -> 0.78 | K24: < 15 m2 | L24: =+$H$19 -> 1.39 | M24: per m2
C25: A3 | D25: klinkers | E25: > 15 m2 | F25: =$F$15+$F$16 -> 25.87 | G25: per m2 | H25: + per m1 sleuflengte | J25: =$F$18 -> 3.68 | K25: > 15 m2 | L25: =+$F$19 -> 1.43 | M25: per m2
C26: A4 | D26: tegels | E26: > 15 m2 | F26: =$I$15+$I$16 -> 18.93 | G26: per m2 | H26: + per m1 sleuflengte | J26: =$I$18 -> 0.15 | K26: > 15 m2 | L26: =+$I$19 -> 1.07 | M26: per m2
C27: A5 | D27: klinkers | E27: > 100 m2 | F27: =$G$15+$G$16 -> 22.99 | G27: per m2 | H27: + per m1 sleuflengte | J27: =$G$18 -> 3.27 | K27: > 100 m2 | L27: =+$G$19 -> 1.27 | M27: per m2
C28: A6 | D28: tegels | E28: > 100 m2 | F28: =$J$15+$J$16 -> 17.79 | G28: per m2 | H28: + per m1 sleuflengte | J28: =$J$18 -> 0.14 | K28: > 100 m2 | L28: =+$J$19 -> 1.01 | M28: per m2
C29: A7 | D29: trottoirband | F29: =K15 -> 10.89 | G29: per m1 | H29: n.v.t | J29: 0 | L29: =$K$19 -> 0.65 | M29: per m1
C30: A8 | D30: opsluit/koprolband | F30: =+L15 -> 8.67 | G30: per m1 | H30: n.v.t. | J30: 0 | L30: =$L$19 -> 0.52 | M30: per m1
A32: Tarief: B1. | B32: Herstel en onderhoud door de aanbieder ( 12 maanden garantie) | H32: Degeneratie: | K32: Beheerskosten:
C34: B1 | D34: klinkers | E34: < 15 m2 | F34: 0 | G34: per m2 | H34: + per reparatie | J34: =$E$17 -> 11.09 | K34: < 15 m2 | L34: =+$E$19 -> 1.75 | M34: per m2
C35: B2 | D35: tegels | E35: < 15 m2 | F35: 0 | G35: per m2 | H35: + per reparatie | J35: =$H$17 -> 0.78 | K35: < 15 m2 | L35: =+$H$19 -> 1.39 | M35: per m2
C36: B3 | D36: klinkers | E36: > 15 m2 | F36: 0 | G36: per m2 | H36: + per m1 sleuflengte | J36: =$F$18 -> 3.68 | K36: > 15 m2 | L36: =+$F$19 -> 1.43 | M36: per m2
C37: B4 | D37: tegels | E37: > 15 m2 | F37: 0 | G37: per m2 | H37: + per m1 sleuflengte | J37: =$I$18 -> 0.15 | K37: > 15 m2 | L37: =+$I$19 -> 1.07 | M37: per m2
C38: B7 | D38: trottoirband | F38: 0 | G38: per m1 | H38: n.v.t | J38: 0 | L38: =$K$19 -> 0.65 | M38: per m1
C39: B8 | D39: opsluit/koprolband | F39: 0 | G39: per m1 | H39: n.v.t. | J39: 0 | L39: =$L$19 -> 0.52 | M39: per m1
A41: Tarief: B2. | B41: Herstel door de aanbieder (12 mnd.garantie) en onderhoud door de gemeente | H41: Degeneratie: | K41: Beheerskosten:
C43: B1 | D43: klinkers | E43: < 15 m2 | F43: =$E$16 -> 2.44 | G43: per m2 | H43: + per reparatie | J43: =$E$17 -> 11.09 | K43: < 15 m2 | L43: =+$E$19 -> 1.75 | M43: per m2
C44: B2 | D44: tegels | E44: < 15 m2 | F44: =$H$16 -> 1.37 | G44: per m2 | H44: + per reparatie | J44: =$H$17 -> 0.78 | K44: < 15 m2 | L44: =+$H$19 -> 1.39 | M44: per m2
C45: B3 | D45: klinkers | E45: > 15 m2 | F45: =$F$16 -> 1.99 | G45: per m2 | H45: + per m1 sleuflengte | J45: =$F$18 -> 3.68 | K45: > 15 m2 | L45: =+$F$19 -> 1.43 | M45: per m2
C46: B4 | D46: tegels | E46: > 15 m2 | F46: =$I$16 -> 1.06 | G46: per m2 | H46: + per m1 sleuflengte | J46: =$I$18 -> 0.15 | K46: > 15 m2 | L46: =+$I$19 -> 1.07 | M46: per m2
C47: B7 | D47: trottoirband | F47: 0 | G47: per m1 | H47: n.v.t | J47: 0 | L47: =$K$19 -> 0.65 | M47: per m1
C48: B8 | D48: opsluit/koprolband | F48: 0 | G48: per m1 | H48: n.v.t. | J48: 0 | L48: =$L$19 -> 0.52 | M48: per m1
A50: Tarief: C. | B50: Herstel door de gemeente voorafgaand aan gehele herbestrating. | H50: Beheerskosten:
C52: C1 | D52: klinkers | E52: < 15 m2 | F52: =($E$15/2)/1.2+$E$16 -> 14.61083333 | G52: per m2 | H52: < 15 m2 | I52: =+$E$19 -> 1.75 | J52: per m2
C53: C2 | D53: tegels | E53: < 15 m2 | F53: =($H$15/2)/1.2+$H$16 -> 11.04083333 | G53: per m2 | H53: < 15 m2 | I53: =+$H$19 -> 1.39 | J53: per m2
C54: C3 | D54: klinkers | E54: > 15 m2 | F54: =($F$15/2)/1.2+$F$16 -> 11.94 | G54: per m2 | H54: > 15 m2 | I54: =+$F$19 -> 1.43 | J54: per m2
C55: C4 | D55: tegels | E55: > 15 m2 | F55: =($I$15/2)/1.2+$I$16 -> 8.505833333 | G55: per m2 | H55: > 15 m2 | I55: =+$I$19 -> 1.07 | J55: per m2
C56: C7 | D56: trottoirband | F56: =($K$15/2)/1.2 -> 4.5375 | G56: per m1 | I56: =$K$19 -> 0.65 | J56: per m1
C57: C8 | D57: opsluit/koprolband | F57: =($L$15/2)/1.2 -> 3.6125 | G57: per m1 | I57: =$L$19 -> 0.52 | J57: per m1
A59: Tarief: C1 | B59: Herstel en onderhoud door de aanbieder ( 12 maanden garantie) voorafgaand aan gehele herbestrating. | H59: Beheerskosten:
C61: C1 | D61: klinkers | E61: < 15 m2 | F61: 0 | G61: per m2 | H61: < 15 m2 | I61: =+$E$19 -> 1.75 | J61: per m2
C62: C2 | D62: tegels | E62: < 15 m2 | F62: 0 | G62: per m2 | H62: < 15 m2 | I62: =+$H$19 -> 1.39 | J62: per m2
C63: C3 | D63: klinkers | E63: > 15 m2 | F63: 0 | G63: per m2 | H63: > 15 m2 | I63: =+$F$19 -> 1.43 | J63: per m2
C64: C4 | D64: tegels | E64: > 15 m2 | F64: 0 | G64: per m2 | H64: > 15 m2 | I64: =+$I$19 -> 1.07 | J64: per m2
C65: C7 | D65: trottoirband | F65: 0 | G65: per m1 | I65: =$K$19 -> 0.65 | J65: per m1
C66: C8 | D66: opsluit/koprolband | F66: 0 | G66: per m1 | I66: =$L$19 -> 0.52 | J66: per m1
A68: Tarief: C2 | B68: Herstel door de aanbieder (12 mnd.garantie) en onderhoud door de gemeente voorafgaand aan gehele herbestrating. | H68: Beheerskosten:
C70: C1 | D70: klinkers | E70: < 15 m2 | F70: =($E$16) -> 2.44 | G70: per m2 | H70: < 15 m2 | I70: =+$E$19 -> 1.75 | J70: per m2
C71: C2 | D71: tegels | E71: < 15 m2 | F71: =$H$16 -> 1.37 | G71: per m2 | H71: < 15 m2 | I71: =+$H$19 -> 1.39 | J71: per m2
C72: C3 | D72: klinkers | E72: > 15 m2 | F72: =$F$16 -> 1.99 | G72: per m2 | H72: > 15 m2 | I72: =+$F$19 -> 1.43 | J72: per m2
C73: C4 | D73: tegels | E73: > 15 m2 | F73: =$I$16 -> 1.06 | G73: per m2 | H73: > 15 m2 | I73: =+$I$19 -> 1.07 | J73: per m2
C74: C7 | D74: trottoirband | F74: 0 | G74: per m1 | I74: =$K$19 -> 0.65 | J74: per m1
C75: C8 | D75: opsluit/koprolband | F75: 0 | G75: per m1 | I75: =$L$19 -> 0.52 | J75: per m1
A77: Tarief: D. | B77: Overige tarieven, herstel door gemeente of netbeheerder zoals aangegeven | I77: Beheerskosten
C79: D3 | D79: berm / gazon, herstel door gemeente | H79: =M15 -> 1.85 | I79: =M19 -> 0.11 | J79: per m2
C80: D4 | D80: berm / gazon, herstel door aanbieder | H80: 0 | I80: =M19 -> 0.11 | J80: per m2
C81: D5 | D81: bomen en struiken | H81: werkelijke kosten
C82: D6 | D82: asfalt | H82: werkelijke kosten
A84: BTW is niet verschuldigd. Zie: Besluit van de Staatsecretaris van Financien dd 19 februari 2004, nr. CPP2003/3098M.
A85: Het tarief oppervlak (m2) straatwerk of berm wordt bepaaldt door vermeningvuldiging van lengte x breedte van de sleuf of lasgat ( gatvergroting zit in tarief)
A86: Per project is het aantal m2 op de straatwerkbon bepalend voor de toepassing van tarief <15 m2 of > 15 m2. Klinkers en tegels mogen niet bijelkaar worden opgeteld
A87: Meerdere kleine opbrekingen binnen 10 meter, aan één wegkant, worden aangemerkt als één reparatie.
A89: Wijzigingen per 1-1-2018:
A90: - Deze tarieven kunnen ook voor netbeheerders, niet zijnde een aanbieder van een elektronisch communicatienet werk worden toegepast, in welk geval 'aanbieder' ook staat voor 'netbeheerder';
A91: - Tarieven voor triottoir-, oplsluit/koprolband verplaatst van tarief D naar A, B1, B2, C, C1 en C2;
A92: - Naast Tarief C (herstel vooruitlopend aan herbestrating) is toegevoegd C1 (bij herstel en onderhoud door aanbieder) en C2 (herstel door aanbieder en onderhoud door gemeente). Deze C-tarieven gelden alleen indien vooraf afgestemd en de aanbieder maximaal 1 jaar voor de geplande uitvoering van de algehele herbestrating werkt.
A93: - Toegevoegd is een richtlijn voor het hanteren van de tarieven indien 'van band tot band' bestraat wordt (tarieven A, B1 en B2 delen door 1,2 en geen degeneratiekosten berekenen). Er is afgezien van het formaliseren van aparte tarieven voor deze gevallen.
A94: - Bermen/gazon: uitvoeringskosten per m2 herberekend, tarief t/m 50m2 vervallen (alleen nog per m2), 2 varianten: herstel door gemeente en herstel door netbeheerder.

Sheet 60-70% slechte bodem
A2: RICHTLIJN TARIEVEN (GRAAF)WERKZAAMHEDEN TELECOM | K2: Bijlage A3
I3: Tarievenblad | K3: jaar/versie: | L3: ='Invoerblad tarieven'!$G$3 -> 2018 v1
A5: 1. Gegevens gemeente:
A6: Bodemgesteldheid categorie: 3. | D6: Onderhoud | G6: Degeneratie | K6: Beheerskosten:
D7: factor | E7: rijweg | F7: voetpad | G7: Klinker: < 15 m2 | H7: Klinker: > 15 m2 | I7: Tegels: < 15 m2 | J7: Tegels: > 15 m2 | K7: algemeen
A9: vanaf 60% tot 70% slechte bodem | D9: 0.5 | E9: 0.12 | F9: 0.08 | G9: 0.84 | H9: 0.34 | I9: 0.16 | J9: 0.04 | K9: =6/100 -> 0.06
A10: 2. Overzicht kostenopbouw:
E11: Klinkers: | H11: Tegels: | K11: Trottoit- | L11: Opsluit- | M11: Berm en
E12: Rijweg | F12: =80/100 -> 0.8 | H12: Voetpad | I12: =95/100 -> 0.95 | K12: band | L12: band | M12: Gazon
E13: Voetpad | F13: =20/100 -> 0.2 | H13: Rijweg | I13: =5/100 -> 0.05
E14: <15 m2 | F14: >15 m2 | G14: >100 m2 | H14: <15 m2 | I14: >15 m2 | J14: >100 m2 | K14: Eenheid: m1 | L14: Eenheid: m1 | M14: Eenheid: m2
A15: 1. Uitvoering: | C15: per m2 | E15: =Moederblad!$J$61 -> 29.21 | F15: =Moederblad!$J$62 -> 23.88 | G15: =Moederblad!$J$63 -> 21.22 | H15: =Moederblad!$J$64 -> 23.21 | I15: =Moederblad!$J$65 -> 17.87 | J15: =Moederblad!$J$66 -> 16.8 | K15: =Moederblad!J67 -> 10.89 | L15: =Moederblad!J68 -> 8.67 | M15: =Moederblad!J71 -> 1.85
A16: 2. Onderhoud: | C16: per m2 | E16: =ROUND($F$12*($E$9*E15)+$F$13*($F$9*$E$15),2) -> 3.27 | F16: =ROUND($F$12*($E$9*$F$15)+$F$13*($F$9*$F$15),2) -> 2.67 | G16: =ROUND($F$12*($E$9*$G$15)+$F$13*($F$9*$G$15),2) -> 2.38 | H16: =ROUND($I$12*($F$9*$H$15)+$I$13*($E$9*$H$15),2) -> 1.9 | I16: =ROUND($I$12*($F$9*$I$15)+$I$13*($E$9*$I$15),2) -> 1.47 | J16: =ROUND($I$12*($F$9*$J$15)+$I$13*($E$9*$J$15),2) -> 1.38
A17: 3a. Degeneratie: | C17: per reparatie | E17: =ROUND(($G$9*$E$15)/1.185,2) -> 20.71 | H17: =ROUND(($I$9*$H$15)/1.185,2) -> 3.13
A18: 3b. Degeneratie: | C18: per m1 sleuflengte | F18: =ROUND(($H$9*$F$15)/1.185,2) -> 6.85 | G18: =ROUND(($H$9*$G$15)/1.185,2) -> 6.09 | I18: =ROUND(($J$9*$I$15)/1.185,2) -> 0.6 | J18: =ROUND(($J$9*$J$15)/1.185,2) -> 0.57
A19: 4. Beheerskosten: | C19: per m2 | E19: =ROUND($K$9*$E$15,2) -> 1.75 | F19: =ROUND($K$9*$F$15,2) -> 1.43 | G19: =ROUND($K$9*$G$15,2) -> 1.27 | H19: =ROUND($K$9*$H$15,2) -> 1.39 | I19: =ROUND($K$9*$I$15,2) -> 1.07 | J19: =ROUND($K$9*$J$15,2) -> 1.01 | K19: =ROUND($K$9*$K$15,2) -> 0.65 | L19: =ROUND($K$9*$L$15,2) -> 0.52 | M19: =ROUND($K$9*$M$15,2) -> 0.11
A20: 3. Tarieven:
A21: Tarief: A. | B21: Herstel, onderhoud, uitgevoerd door de gemeente inclusief beheerskosten | H21: Degeneratie: | K21: Beheerskosten:
C23: A1 | D23: klinkers | E23: < 15 m2 | F23: =$E$15+$E$16 -> 32.48 | G23: per m2 | H23: + per reparatie | J23: =$E$17 -> 20.71 | K23: < 15 m2 | L23: =+$E$19 -> 1.75 | M23: per m2
C24: A2 | D24: tegels | E24: < 15 m2 | F24: =$H$15+$H$16 -> 25.11 | G24: per m2 | H24: + per reparatie | J24: =$H$17 -> 3.13 | K24: < 15 m2 | L24: =+$H$19 -> 1.39 | M24: per m2
C25: A3 | D25: klinkers | E25: > 15 m2 | F25: =$F$15+$F$16 -> 26.55 | G25: per m2 | H25: + per m1 sleuflengte | J25: =$F$18 -> 6.85 | K25: > 15 m2 | L25: =+$F$19 -> 1.43 | M25: per m2
C26: A4 | D26: tegels | E26: > 15 m2 | F26: =$I$15+$I$16 -> 19.34 | G26: per m2 | H26: + per m1 sleuflengte | J26: =$I$18 -> 0.6 | K26: > 15 m2 | L26: =+$I$19 -> 1.07 | M26: per m2
C27: A5 | D27: klinkers | E27: > 100 m2 | F27: =$G$15+$G$16 -> 23.6 | G27: per m2 | H27: + per m1 sleuflengte | J27: =$G$18 -> 6.09 | K27: > 100 m2 | L27: =+$G$19 -> 1.27 | M27: per m2
C28: A6 | D28: tegels | E28: > 100 m2 | F28: =$J$15+$J$16 -> 18.18 | G28: per m2 | H28: + per m1 sleuflengte | J28: =$J$18 -> 0.57 | K28: > 100 m2 | L28: =+$J$19 -> 1.01 | M28: per m2
C29: A7 | D29: trottoirband | F29: =K15 -> 10.89 | G29: per m1 | H29: n.v.t | J29: 0 | L29: =$K$19 -> 0.65 | M29: per m1
C30: A8 | D30: opsluit/koprolband | F30: =+L15 -> 8.67 | G30: per m1 | H30: n.v.t. | J30: 0 | L30: =$L$19 -> 0.52 | M30: per m1
A32: Tarief: B1. | B32: Herstel en onderhoud door de aanbieder ( 12 maanden garantie) | H32: Degeneratie: | K32: Beheerskosten:
C34: B1 | D34: klinkers | E34: < 15 m2 | F34: 0 | G34: per m2 | H34: + per reparatie | J34: =$E$17 -> 20.71 | K34: < 15 m2 | L34: =+$E$19 -> 1.75 | M34: per m2
C35: B2 | D35: tegels | E35: < 15 m2 | F35: 0 | G35: per m2 | H35: + per reparatie | J35: =$H$17 -> 3.13 | K35: < 15 m2 | L35: =+$H$19 -> 1.39 | M35: per m2
C36: B3 | D36: klinkers | E36: > 15 m2 | F36: 0 | G36: per m2 | H36: + per m1 sleuflengte | J36: =$F$18 -> 6.85 | K36: > 15 m2 | L36: =+$F$19 -> 1.43 | M36: per m2
C37: B4 | D37: tegels | E37: > 15 m2 | F37: 0 | G37: per m2 | H37: + per m1 sleuflengte | J37: =$I$18 -> 0.6 | K37: > 15 m2 | L37: =+$I$19 -> 1.07 | M37: per m2
C38: B7 | D38: trottoirband | F38: 0 | G38: per m1 | H38: n.v.t | J38: 0 | L38: =$K$19 -> 0.65 | M38: per m1
C39: B8 | D39: opsluit/koprolband | F39: 0 | G39: per m1 | H39: n.v.t. | J39: 0 | L39: =$L$19 -> 0.52 | M39: per m1
A41: Tarief: B2. | B41: Herstel door de aanbieder (12 mnd.garantie) en onderhoud door de gemeente | H41: Degeneratie: | K41: Beheerskosten:
C43: B1 | D43: klinkers | E43: < 15 m2 | F43: =$E$16 -> 3.27 | G43: per m2 | H43: + per reparatie | J43: =$E$17 -> 20.71 | K43: < 15 m2 | L43: =+$E$19 -> 1.75 | M43: per m2
C44: B2 | D44: tegels | E44: < 15 m2 | F44: =$H$16 -> 1.9 | G44: per m2 | H44: + per reparatie | J44: =$H$17 -> 3.13 | K44: < 15 m2 | L44: =+$H$19 -> 1.39 | M44: per m2
C45: B3 | D45: klinkers | E45: > 15 m2 | F45: =$F$16 -> 2.67 | G45: per m2 | H45: + per m1 sleuflengte | J45: =$F$18 -> 6.85 | K45: > 15 m2 | L45: =+$F$19 -> 1.43 | M45: per m2
C46: B4 | D46: tegels | E46: > 15 m2 | F46: =$I$16 -> 1.47 | G46: per m2 | H46: + per m1 sleuflengte | J46: =$I$18 -> 0.6 | K46: > 15 m2 | L46: =+$I$19 -> 1.07 | M46: per m2
C47: B7 | D47: trottoirband | F47: 0 | G47: per m1 | H47: n.v.t | J47: 0 | L47: =$K$19 -> 0.65 | M47: per m1
C48: B8 | D48: opsluit/koprolband | F48: 0 | G48: per m1 | H48: n.v.t. | J48: 0 | L48: =$L$19 -> 0.52 | M48: per m1
A50: Tarief: C. | B50: Herstel door de gemeente voorafgaand aan gehele herbestrating. | H50: Beheerskosten:
C52: C1 | D52: klinkers | E52: < 15 m2 | F52: =($E$15/2)/1.2+$E$16 -> 15.44083333 | G52: per m2 | H52: < 15 m2 | I52: =+$E$19 -> 1.75 | J52: per m2
C53: C2 | D53: tegels | E53: < 15 m2 | F53: =($H$15/2)/1.2+$H$16 -> 11.57083333 | G53: per m2 | H53: < 15 m2 | I53: =+$H$19 -> 1.39 | J53: per m2
C54: C3 | D54: klinkers | E54: > 15 m2 | F54: =($F$15/2)/1.2+$F$16 -> 12.62 | G54: per m2 | H54: > 15 m2 | I54: =+$F$19 -> 1.43 | J54: per m2
C55: C4 | D55: tegels | E55: > 15 m2 | F55: =($I$15/2)/1.2+$I$16 -> 8.915833333 | G55: per m2 | H55: > 15 m2 | I55: =+$I$19 -> 1.07 | J55: per m2
C56: C7 | D56: trottoirband | F56: =($K$15/2)/1.2 -> 4.5375 | G56: per m1 | I56: =$K$19 -> 0.65 | J56: per m1
C57: C8 | D57: opsluit/koprolband | F57: =($L$15/2)/1.2 -> 3.6125 | G57: per m1 | I57: =$L$19 -> 0.52 | J57: per m1
A59: Tarief: C1 | B59: Herstel en onderhoud door de aanbieder ( 12 maanden garantie) voorafgaand aan gehele herbestrating. | H59: Beheerskosten:
C61: C1 | D61: klinkers | E61: < 15 m2 | F61: 0 | G61: per m2 | H61: < 15 m2 | I61: =+$E$19 -> 1.75 | J61: per m2
C62: C2 | D62: tegels | E62: < 15 m2 | F62: 0 | G62: per m2 | H62: < 15 m2 | I62: =+$H$19 -> 1.39 | J62: per m2
C63: C3 | D63: klinkers | E63: > 15 m2 | F63: 0 | G63: per m2 | H63: > 15 m2 | I63: =+$F$19 -> 1.43 | J63: per m2
C64: C4 | D64: tegels | E64: > 15 m2 | F64: 0 | G64: per m2 | H64: > 15 m2 | I64: =+$I$19 -> 1.07 | J64: per m2
C65: C7 | D65: trottoirband | F65: 0 | G65: per m1 | I65: =$K$19 -> 0.65 | J65: per m1
C66: C8 | D66: opsluit/koprolband | F66: 0 | G66: per m1 | I66: =$L$19 -> 0.52 | J66: per m1
A68: Tarief: C2 | B68: Herstel door de aanbieder (12 mnd.garantie) en onderhoud door de gemeente voorafgaand aan gehele herbestrating. | H68: Beheerskosten:
C70: C1 | D70: klinkers | E70: < 15 m2 | F70: =($E$16) -> 3.27 | G70: per m2 | H70: < 15 m2 | I70: =+$E$19 -> 1.75 | J70: per m2
C71: C2 | D71: tegels | E71: < 15 m2 | F71: =$H$16 -> 1.9 | G71: per m2 | H71: < 15 m2 | I71: =+$H$19 -> 1.39 | J71: per m2
C72: C3 | D72: klinkers | E72: > 15 m2 | F72: =$F$16 -> 2.67 | G72: per m2 | H72: > 15 m2 | I72: =+$F$19 -> 1.43 | J72: per m2
C73: C4 | D73: tegels | E73: > 15 m2 | F73: =$I$16 -> 1.47 | G73: per m2 | H73: > 15 m2 | I73: =+$I$19 -> 1.07 | J73: per m2
C74: C7 | D74: trottoirband | F74: 0 | G74: per m1 | I74: =$K$19 -> 0.65 | J74: per m1
C75: C8 | D75: opsluit/koprolband | F75: 0 | G75: per m1 | I75: =$L$19 -> 0.52 | J75: per m1
A77: Tarief: D. | B77: Overige tarieven, herstel door de gemeente of netbeheerder zoals aangegeven | I77: Beheerskosten
C79: D3 | D79: berm / gazon, herstel door gemeente | H79: =M15 -> 1.85 | I79: =M19 -> 0.11 | J79: per m2
C80: D4 | D80: berm / gazon, herstel door aanbieder | H80: 0 | I80: =M19 -> 0.11 | J80: per m2
C81: D5 | D81: bomen en struiken | H81: werkelijke kosten
C82: D6 | D82: asfalt | H82: werkelijke kosten
A84: BTW is niet verschuldigd. Zie: Besluit van de Staatsecretaris van Financien dd 19 februari 2004, nr. CPP2003/3098M.
A85: Het tarief oppervlak (m2) straatwerk of berm wordt bepaaldt door vermeningvuldiging van lengte x breedte van de sleuf of lasgat ( gatvergroting zit in tarief)
A86: Per project is het aantal m2 op de straatwerkbon bepalend voor de toepassing van tarief <15 m2 of > 15 m2. Klinkers en tegels mogen niet bijelkaar worden opgeteld
A87: Meerdere kleine opbrekingen binnen 10 meter, aan één wegkant, worden aangemerkt als één reparatie.
A89: Wijzigingen per 1-1-2018:
A90: - Deze tarieven kunnen ook voor netbeheerders, niet zijnde een aanbieder van een elektronisch communicatienet werk worden toegepast, in welk geval 'aanbieder' ook staat voor 'netbeheerder';
A91: - Tarieven voor triottoir-, oplsluit/koprolband verplaatst van tarief D naar A, B1, B2, C, C1 en C2;
A92: - Naast Tarief C (herstel vooruitlopend aan herbestrating) is toegevoegd C1 (bij herstel en onderhoud door aanbieder) en C2 (herstel door aanbieder en onderhoud door gemeente). Deze C-tarieven gelden alleen indien vooraf afgestemd en de aanbieder maximaal 1 jaar voor de geplande uitvoering van de algehele herbestrating werkt.
A93: - Toegevoegd is een richtlijn voor het hanteren van de tarieven indien 'van band tot band' bestraat wordt (tarieven A, B1 en B2 delen door 1,2 en geen degeneratiekosten berekenen). Er is afgezien van het formaliseren van aparte tarieven voor deze gevallen.
A94: - Bermen/gazon: uitvoeringskosten per m2 herberekend, tarief t/m 50m2 vervallen (alleen nog per m2), 2 varianten: herstel door gemeente en herstel door netbeheerder.

Sheet 70-80% slechte bodem
A2: RICHTLIJN TARIEVEN (GRAAF)WERKZAAMHEDEN TELECOM | K2: Bijlage A4
I3: Tarievenblad | K3: jaar/versie: | L3: ='Invoerblad tarieven'!$G$3 -> 2018 v1
A5: 1. Gegevens gemeente:
A6: Bodemgesteldheid categorie: 4. | D6: Onderhoud | G6: Degeneratie | K6: Beheerskosten:
D7: factor | E7: rijweg | F7: voetpad | G7: Klinker: < 15 m2 | H7: Klinker: > 15 m2 | I7: Tegels: < 15 m2 | J7: Tegels: > 15 m2 | K7: algemeen
A9: vanaf 70% tot 80% slechte bodem | D9: 0.75 | E9: 0.18 | F9: 0.1325 | G9: 1.29 | H9: 0.6775 | I9: 0.46 | J9: 0.49 | K9: =6/100 -> 0.06
A10: 2. Overzicht kostenopbouw:
E11: Klinkers: | H11: Tegels: | K11: Trottoit- | L11: Opsluit- | M11: Berm en
E12: Rijweg | F12: =80/100 -> 0.8 | H12: Voetpad | I12: =95/100 -> 0.95 | K12: band | L12: band | M12: Gazon
E13: Voetpad | F13: =20/100 -> 0.2 | H13: Rijweg | I13: =5/100 -> 0.05
E14: <15 m2 | F14: >15 m2 | G14: >100 m2 | H14: <15 m2 | I14: >15 m2 | J14: >100 m2 | K14: Eenheid: m1 | L14: Eenheid: m1 | M14: Eenheid: m2
A15: 1. Uitvoering: | C15: per m2 | E15: =Moederblad!$J$61 -> 29.21 | F15: =Moederblad!$J$62 -> 23.88 | G15: =Moederblad!$J$63 -> 21.22 | H15: =Moederblad!$J$64 -> 23.21 | I15: =Moederblad!$J$65 -> 17.87 | J15: =Moederblad!$J$66 -> 16.8 | K15: =Moederblad!J67 -> 10.89 | L15: =Moederblad!J68 -> 8.67 | M15: =Moederblad!J71 -> 1.85
A16: 2. Onderhoud: | C16: per m2 | E16: =ROUND($F$12*($E$9*E15)+$F$13*($F$9*$E$15),2) -> 4.98 | F16: =ROUND($F$12*($E$9*$F$15)+$F$13*($F$9*$F$15),2) -> 4.07 | G16: =ROUND($F$12*($E$9*$G$15)+$F$13*($F$9*$G$15),2) -> 3.62 | H16: =ROUND($I$12*($F$9*$H$15)+$I$13*($E$9*$H$15),2) -> 3.13 | I16: =ROUND($I$12*($F$9*$I$15)+$I$13*($E$9*$I$15),2) -> 2.41 | J16: =ROUND($I$12*($F$9*$J$15)+$I$13*($E$9*$J$15),2) -> 2.27
A17: 3a. Degeneratie: | C17: per reparatie | E17: =ROUND(($G$9*$E$15)/1.185,2) -> 31.8 | H17: =ROUND(($I$9*$H$15)/1.185,2) -> 9.01
A18: 3b. Degeneratie: | C18: per m1 sleuflengte | F18: =ROUND(($H$9*$F$15)/1.185,2) -> 13.65 | G18: =ROUND(($H$9*$G$15)/1.185,2) -> 12.13 | I18: =ROUND(($J$9*$I$15)/1.185,2) -> 7.39 | J18: =ROUND(($J$9*$J$15)/1.185,2) -> 6.95
A19: 4. Beheerskosten: | C19: per m2 | E19: =ROUND($K$9*$E$15,2) -> 1.75 | F19: =ROUND($K$9*$F$15,2) -> 1.43 | G19: =ROUND($K$9*$G$15,2) -> 1.27 | H19: =ROUND($K$9*$H$15,2) -> 1.39 | I19: =ROUND($K$9*$I$15,2) -> 1.07 | J19: =ROUND($K$9*$J$15,2) -> 1.01 | K19: =ROUND($K$9*$K$15,2) -> 0.65 | L19: =ROUND($K$9*$L$15,2) -> 0.52 | M19: =ROUND($K$9*$M$15,2) -> 0.11
A20: 3. Tarieven:
A21: Tarief: A. | B21: Herstel, onderhoud, uitgevoerd door de gemeente inclusief beheerskosten | H21: Degeneratie: | K21: Beheerskosten:
C23: A1 | D23: klinkers | E23: < 15 m2 | F23: =$E$15+$E$16 -> 34.19 | G23: per m2 | H23: + per reparatie | J23: =$E$17 -> 31.8 | K23: < 15 m2 | L23: =+$E$19 -> 1.75 | M23: per m2
C24: A2 | D24: tegels | E24: < 15 m2 | F24: =$H$15+$H$16 -> 26.34 | G24: per m2 | H24: + per reparatie | J24: =$H$17 -> 9.01 | K24: < 15 m2 | L24: =+$H$19 -> 1.39 | M24: per m2
C25: A3 | D25: klinkers | E25: > 15 m2 | F25: =$F$15+$F$16 -> 27.95 | G25: per m2 | H25: + per m1 sleuflengte | J25: =$F$18 -> 13.65 | K25: > 15 m2 | L25: =+$F$19 -> 1.43 | M25: per m2
C26: A4 | D26: tegels | E26: > 15 m2 | F26: =$I$15+$I$16 -> 20.28 | G26: per m2 | H26: + per m1 sleuflengte | J26: =$I$18 -> 7.39 | K26: > 15 m2 | L26: =+$I$19 -> 1.07 | M26: per m2
C27: A5 | D27: klinkers | E27: > 100 m2 | F27: =$G$15+$G$16 -> 24.84 | G27: per m2 | H27: + per m1 sleuflengte | J27: =$G$18 -> 12.13 | K27: > 100 m2 | L27: =+$G$19 -> 1.27 | M27: per m2
C28: A6 | D28: tegels | E28: > 100 m2 | F28: =$J$15+$J$16 -> 19.07 | G28: per m2 | H28: + per m1 sleuflengte | J28: =$J$18 -> 6.95 | K28: > 100 m2 | L28: =+$J$19 -> 1.01 | M28: per m2
C29: A7 | D29: trottoirband | F29: =K15 -> 10.89 | G29: per m1 | H29: n.v.t | J29: 0 | L29: =$K$19 -> 0.65 | M29: per m1
C30: A8 | D30: opsluit/koprolband | F30: =+L15 -> 8.67 | G30: per m1 | H30: n.v.t. | J30: 0 | L30: =$L$19 -> 0.52 | M30: per m1
A32: Tarief: B1. | B32: Herstel en onderhoud door de aanbieder ( 12 maanden garantie) | H32: Degeneratie: | K32: Beheerskosten:
C34: B1 | D34: klinkers | E34: < 15 m2 | F34: 0 | G34: per m2 | H34: + per reparatie | J34: =$E$17 -> 31.8 | K34: < 15 m2 | L34: =+$E$19 -> 1.75 | M34: per m2
C35: B2 | D35: tegels | E35: < 15 m2 | F35: 0 | G35: per m2 | H35: + per reparatie | J35: =$H$17 -> 9.01 | K35: < 15 m2 | L35: =+$H$19 -> 1.39 | M35: per m2
C36: B3 | D36: klinkers | E36: > 15 m2 | F36: 0 | G36: per m2 | H36: + per m1 sleuflengte | J36: =$F$18 -> 13.65 | K36: > 15 m2 | L36: =+$F$19 -> 1.43 | M36: per m2
C37: B4 | D37: tegels | E37: > 15 m2 | F37: 0 | G37: per m2 | H37: + per m1 sleuflengte | J37: =$I$18 -> 7.39 | K37: > 15 m2 | L37: =+$I$19 -> 1.07 | M37: per m2
C38: B7 | D38: trottoirband | F38: 0 | G38: per m1 | H38: n.v.t | J38: 0 | L38: =$K$19 -> 0.65 | M38: per m1
C39: B8 | D39: opsluit/koprolband | F39: 0 | G39: per m1 | H39: n.v.t. | J39: 0 | L39: =$L$19 -> 0.52 | M39: per m1
A41: Tarief: B2. | B41: Herstel door de aanbieder (12 mnd.garantie) en onderhoud door de gemeente | H41: Degeneratie: | K41: Beheerskosten:
C43: B1 | D43: klinkers | E43: < 15 m2 | F43: =$E$16 -> 4.98 | G43: per m2 | H43: + per reparatie | J43: =$E$17 -> 31.8 | K43: < 15 m2 | L43: =+$E$19 -> 1.75 | M43: per m2
C44: B2 | D44: tegels | E44: < 15 m2 | F44: =$H$16 -> 3.13 | G44: per m2 | H44: + per reparatie | J44: =$H$17 -> 9.01 | K44: < 15 m2 | L44: =+$H$19 -> 1.39 | M44: per m2
C45: B3 | D45: klinkers | E45: > 15 m2 | F45: =$F$16 -> 4.07 | G45: per m2 | H45: + per m1 sleuflengte | J45: =$F$18 -> 13.65 | K45: > 15 m2 | L45: =+$F$19 -> 1.43 | M45: per m2
C46: B4 | D46: tegels | E46: > 15 m2 | F46: =$I$16 -> 2.41 | G46: per m2 | H46: + per m1 sleuflengte | J46: =$I$18 -> 7.39 | K46: > 15 m2 | L46: =+$I$19 -> 1.07 | M46: per m2
C47: B7 | D47: trottoirband | F47: 0 | G47: per m1 | H47: n.v.t | J47: 0 | L47: =$K$19 -> 0.65 | M47: per m1
C48: B8 | D48: opsluit/koprolband | F48: 0 | G48: per m1 | H48: n.v.t. | J48: 0 | L48: =$L$19 -> 0.52 | M48: per m1
A50: Tarief: C. | B50: Herstel door de gemeente voorafgaand aan gehele herbestrating. | H50: Beheerskosten:
C52: C1 | D52: klinkers | E52: < 15 m2 | F52: =($E$15/2)/1.2+$E$16 -> 17.15083333 | G52: per m2 | H52: < 15 m2 | I52: =+$E$19 -> 1.75 | J52: per m2
C53: C2 | D53: tegels | E53: < 15 m2 | F53: =($H$15/2)/1.2+$H$16 -> 12.80083333 | G53: per m2 | H53: < 15 m2 | I53: =+$H$19 -> 1.39 | J53: per m2
C54: C3 | D54: klinkers | E54: > 15 m2 | F54: =($F$15/2)/1.2+$F$16 -> 14.02 | G54: per m2 | H54: > 15 m2 | I54: =+$F$19 -> 1.43 | J54: per m2
C55: C4 | D55: tegels | E55: > 15 m2 | F55: =($I$15/2)/1.2+$I$16 -> 9.855833333 | G55: per m2 | H55: > 15 m2 | I55: =+$I$19 -> 1.07 | J55: per m2
C56: C7 | D56: trottoirband | F56: =($K$15/2)/1.2 -> 4.5375 | G56: per m1 | I56: =$K$19 -> 0.65 | J56: per m1
C57: C8 | D57: opsluit/koprolband | F57: =($L$15/2)/1.2 -> 3.6125 | G57: per m1 | I57: =$L$19 -> 0.52 | J57: per m1
A59: Tarief: C1 | B59: Herstel en onderhoud door de aanbieder ( 12 maanden garantie) voorafgaand aan gehele herbestrating. | H59: Beheerskosten:
C61: C1 | D61: klinkers | E61: < 15 m2 | F61: 0 | G61: per m2 | H61: < 15 m2 | I61: =+$E$19 -> 1.75 | J61: per m2
C62: C2 | D62: tegels | E62: < 15 m2 | F62: 0 | G62: per m2 | H62: < 15 m2 | I62: =+$H$19 -> 1.39 | J62: per m2
C63: C3 | D63: klinkers | E63: > 15 m2 | F63: 0 | G63: per m2 | H63: > 15 m2 | I63: =+$F$19 -> 1.43 | J63: per m2
C64: C4 | D64: tegels | E64: > 15 m2 | F64: 0 | G64: per m2 | H64: > 15 m2 | I64: =+$I$19 -> 1.07 | J64: per m2
C65: C7 | D65: trottoirband | F65: 0 | G65: per m1 | I65: =$K$19 -> 0.65 | J65: per m1
C66: C8 | D66: opsluit/koprolband | F66: 0 | G66: per m1 | I66: =$L$19 -> 0.52 | J66: per m1
A68: Tarief: C2 | B68: Herstel door de aanbieder (12 mnd.garantie) en onderhoud door de gemeente voorafgaand aan gehele herbestrating. | H68: Beheerskosten:
C70: C1 | D70: klinkers | E70: < 15 m2 | F70: =($E$16) -> 4.98 | G70: per m2 | H70: < 15 m2 | I70: =+$E$19 -> 1.75 | J70: per m2
C71: C2 | D71: tegels | E71: < 15 m2 | F71: =$H$16 -> 3.13 | G71: per m2 | H71: < 15 m2 | I71: =+$H$19 -> 1.39 | J71: per m2
C72: C3 | D72: klinkers | E72: > 15 m2 | F72: =$F$16 -> 4.07 | G72: per m2 | H72: > 15 m2 | I72: =+$F$19 -> 1.43 | J72: per m2
C73: C4 | D73: tegels | E73: > 15 m2 | F73: =$I$16 -> 2.41 | G73: per m2 | H73: > 15 m2 | I73: =+$I$19 -> 1.07 | J73: per m2
C74: C7 | D74: trottoirband | F74: 0 | G74: per m1 | I74: =$K$19 -> 0.65 | J74: per m1
C75: C8 | D75: opsluit/koprolband | F75: 0 | G75: per m1 | I75: =$L$19 -> 0.52 | J75: per m1
A77: Tarief: D. | B77: Overige tarieven, herstel door de gemeente of netbeheerder zoals aangegeven | I77: Beheerskosten
C79: D3 | D79: berm / gazon, herstel door gemeente | H79: =M15 -> 1.85 | I79: =M19 -> 0.11 | J79: per m2
C80: D4 | D80: berm / gazon, herstel door aanbieder | H80: 0 | I80: =M19 -> 0.11 | J80: per m2
C81: D5 | D81: bomen en struiken | H81: werkelijke kosten
C82: D6 | D82: asfalt | H82: werkelijke kosten
A84: BTW is niet verschuldigd. Zie: Besluit van de Staatsecretaris van Financien dd 19 februari 2004, nr. CPP2003/3098M.
A85: Het tarief oppervlak (m2) straatwerk of berm wordt bepaaldt door vermeningvuldiging van lengte x breedte van de sleuf of lasgat ( gatvergroting zit in tarief)
A86: Per project is het aantal m2 op de straatwerkbon bepalend voor de toepassing van tarief <15 m2 of > 15 m2. Klinkers en tegels mogen niet bijelkaar worden opgeteld
A87: Meerdere kleine opbrekingen binnen 10 meter, aan één wegkant, worden aangemerkt als één reparatie.
A89: Wijzigingen per 1-1-2018:
A90: - Deze tarieven kunnen ook voor netbeheerders, niet zijnde een aanbieder van een elektronisch communicatienet werk worden toegepast, in welk geval 'aanbieder' ook staat voor 'netbeheerder';
A91: - Tarieven voor triottoir-, oplsluit/koprolband verplaatst van tarief D naar A, B1, B2, C, C1 en C2;
A92: - Naast Tarief C (herstel vooruitlopend aan herbestrating) is toegevoegd C1 (bij herstel en onderhoud door aanbieder) en C2 (herstel door aanbieder en onderhoud door gemeente). Deze C-tarieven gelden alleen indien vooraf afgestemd en de aanbieder maximaal 1 jaar voor de geplande uitvoering van de algehele herbestrating werkt.
A93: - Toegevoegd is een richtlijn voor het hanteren van de tarieven indien 'van band tot band' bestraat wordt (tarieven A, B1 en B2 delen door 1,2 en geen degeneratiekosten berekenen). Er is afgezien van het formaliseren van aparte tarieven voor deze gevallen.
A94: - Bermen/gazon: uitvoeringskosten per m2 herberekend, tarief t/m 50m2 vervallen (alleen nog per m2), 2 varianten: herstel door gemeente en herstel door netbeheerder.

Sheet > 80% slechte bodem
A2: RICHTLIJN TARIEVEN (GRAAF)WERKZAAMHEDEN TELECOM | K2: Bijlage A5
I3: Tarievenblad | K3: jaar/versie: | L3: ='Invoerblad tarieven'!$G$3 -> 2018 v1
A5: 1. Gegevens gemeente:
A6: Bodemgesteldheid categorie: 5. | D6: Onderhoud | G6: Degeneratie | K6: Beheerskosten:
D7: factor | E7: rijweg | F7: voetpad | G7: Klinker: < 15 m2 | H7: Klinker: > 15 m2 | I7: Tegels: < 15 m2 | J7: Tegels: > 15 m2 | K7: algemeen
A9: vanaf 80% slechte bodem | D9: 1 | E9: 0.2 | F9: 0.15 | G9: 1.58 | H9: 0.79 | I9: 0.56 | J9: 0.64 | K9: =6/100 -> 0.06
A10: 2. Overzicht kostenopbouw:
E11: Klinkers: | H11: Tegels: | K11: Trottoit- | L11: Opsluit- | M11: Berm en
E12: Rijweg | F12: =80/100 -> 0.8 | H12: Voetpad | I12: =95/100 -> 0.95 | K12: band | L12: band | M12: Gazon
E13: Voetpad | F13: =20/100 -> 0.2 | H13: Rijweg | I13: =5/100 -> 0.05
E14: <15 m2 | F14: >15 m2 | G14: >100 m2 | H14: <15 m2 | I14: >15 m2 | J14: >100 m2 | K14: Eenheid: m1 | L14: Eenheid: m1 | M14: Eenheid: m2
A15: 1. Uitvoering: | C15: per m2 | E15: =Moederblad!$J$61 -> 29.21 | F15: =Moederblad!$J$62 -> 23.88 | G15: =Moederblad!$J$63 -> 21.22 | H15: =Moederblad!$J$64 -> 23.21 | I15: =Moederblad!$J$65 -> 17.87 | J15: =Moederblad!$J$66 -> 16.8 | K15: =Moederblad!J67 -> 10.89 | L15: =Moederblad!J68 -> 8.67 | M15: =Moederblad!J71 -> 1.85
A16: 2. Onderhoud: | C16: per m2 | E16: =ROUND($F$12*($E$9*E15)+$F$13*($F$9*$E$15),2) -> 5.55 | F16: =ROUND($F$12*($E$9*$F$15)+$F$13*($F$9*$F$15),2) -> 4.54 | G16: =ROUND($F$12*($E$9*$G$15)+$F$13*($F$9*$G$15),2) -> 4.03 | H16: =ROUND($I$12*($F$9*$H$15)+$I$13*($E$9*$H$15),2) -> 3.54 | I16: =ROUND($I$12*($F$9*$I$15)+$I$13*($E$9*$I$15),2) -> 2.73 | J16: =ROUND($I$12*($F$9*$J$15)+$I$13*($E$9*$J$15),2) -> 2.56
A17: 3a. Degeneratie: | C17: per reparatie | E17: =ROUND(($G$9*$E$15)/1.185,2) -> 38.95 | H17: =ROUND(($I$9*$H$15)/1.185,2) -> 10.97
A18: 3b. Degeneratie: | C18: per m1 sleuflengte | F18: =ROUND(($H$9*$F$15)/1.185,2) -> 15.92 | G18: =ROUND(($H$9*$G$15)/1.185,2) -> 14.15 | I18: =ROUND(($J$9*$I$15)/1.185,2) -> 9.65 | J18: =ROUND(($J$9*$J$15)/1.185,2) -> 9.07
A19: 4. Beheerskosten: | C19: per m2 | E19: =ROUND($K$9*$E$15,2) -> 1.75 | F19: =ROUND($K$9*$F$15,2) -> 1.43 | G19: =ROUND($K$9*$G$15,2) -> 1.27 | H19: =ROUND($K$9*$H$15,2) -> 1.39 | I19: =ROUND($K$9*$I$15,2) -> 1.07 | J19: =ROUND($K$9*$J$15,2) -> 1.01 | K19: =ROUND($K$9*$K$15,2) -> 0.65 | L19: =ROUND($K$9*$L$15,2) -> 0.52 | M19: =ROUND($K$9*$M$15,2) -> 0.11
A20: 3. Tarieven:
A21: Tarief: A. | B21: Herstel, onderhoud, uitgevoerd door de gemeente inclusief beheerskosten | H21: Degeneratie: | K21: Beheerskosten:
C23: A1 | D23: klinkers | E23: < 15 m2 | F23: =$E$15+$E$16 -> 34.76 | G23: per m2 | H23: + per reparatie | J23: =$E$17 -> 38.95 | K23: < 15 m2 | L23: =+$E$19 -> 1.75 | M23: per m2
C24: A2 | D24: tegels | E24: < 15 m2 | F24: =$H$15+$H$16 -> 26.75 | G24: per m2 | H24: + per reparatie | J24: =$H$17 -> 10.97 | K24: < 15 m2 | L24: =+$H$19 -> 1.39 | M24: per m2
C25: A3 | D25: klinkers | E25: > 15 m2 | F25: =$F$15+$F$16 -> 28.42 | G25: per m2 | H25: + per m1 sleuflengte | J25: =$F$18 -> 15.92 | K25: > 15 m2 | L25: =+$F$19 -> 1.43 | M25: per m2
C26: A4 | D26: tegels | E26: > 15 m2 | F26: =$I$15+$I$16 -> 20.6 | G26: per m2 | H26: + per m1 sleuflengte | J26: =$I$18 -> 9.65 | K26: > 15 m2 | L26: =+$I$19 -> 1.07 | M26: per m2
C27: A5 | D27: klinkers | E27: > 100 m2 | F27: =$G$15+$G$16 -> 25.25 | G27: per m2 | H27: + per m1 sleuflengte | J27: =$G$18 -> 14.15 | K27: > 100 m2 | L27: =+$G$19 -> 1.27 | M27: per m2
C28: A6 | D28: tegels | E28: > 100 m2 | F28: =$J$15+$J$16 -> 19.36 | G28: per m2 | H28: + per m1 sleuflengte | J28: =$J$18 -> 9.07 | K28: > 100 m2 | L28: =+$J$19 -> 1.01 | M28: per m2
C29: A7 | D29: trottoirband | F29: =K15 -> 10.89 | G29: per m1 | H29: n.v.t | J29: 0 | L29: =$K$19 -> 0.65 | M29: per m1
C30: A8 | D30: opsluit/koprolband | F30: =+L15 -> 8.67 | G30: per m1 | H30: n.v.t. | J30: 0 | L30: =$L$19 -> 0.52 | M30: per m1
A32: Tarief: B1. | B32: Herstel en onderhoud door de aanbieder ( 12 maanden garantie) | H32: Degeneratie: | K32: Beheerskosten:
C34: B1 | D34: klinkers | E34: < 15 m2 | F34: 0 | G34: per m2 | H34: + per reparatie | J34: =$E$17 -> 38.95 | K34: < 15 m2 | L34: =+$E$19 -> 1.75 | M34: per m2
C35: B2 | D35: tegels | E35: < 15 m2 | F35: 0 | G35: per m2 | H35: + per reparatie | J35: =$H$17 -> 10.97 | K35: < 15 m2 | L35: =+$H$19 -> 1.39 | M35: per m2
C36: B3 | D36: klinkers | E36: > 15 m2 | F36: 0 | G36: per m2 | H36: + per m1 sleuflengte | J36: =$F$18 -> 15.92 | K36: > 15 m2 | L36: =+$F$19 -> 1.43 | M36: per m2
C37: B4 | D37: tegels | E37: > 15 m2 | F37: 0 | G37: per m2 | H37: + per m1 sleuflengte | J37: =$I$18 -> 9.65 | K37: > 15 m2 | L37: =+$I$19 -> 1.07 | M37: per m2
C38: B7 | D38: trottoirband | F38: 0 | G38: per m1 | H38: n.v.t | J38: 0 | L38: =$K$19 -> 0.65 | M38: per m1
C39: B8 | D39: opsluit/koprolband | F39: 0 | G39: per m1 | H39: n.v.t. | J39: 0 | L39: =$L$19 -> 0.52 | M39: per m1
A41: Tarief: B2. | B41: Herstel door de aanbieder (12 mnd.garantie) en onderhoud door de gemeente | H41: Degeneratie: | K41: Beheerskosten:
C43: B1 | D43: klinkers | E43: < 15 m2 | F43: =$E$16 -> 5.55 | G43: per m2 | H43: + per reparatie | J43: =$E$17 -> 38.95 | K43: < 15 m2 | L43: =+$E$19 -> 1.75 | M43: per m2
C44: B2 | D44: tegels | E44: < 15 m2 | F44: =$H$16 -> 3.54 | G44: per m2 | H44: + per reparatie | J44: =$H$17 -> 10.97 | K44: < 15 m2 | L44: =+$H$19 -> 1.39 | M44: per m2
C45: B3 | D45: klinkers | E45: > 15 m2 | F45: =$F$16 -> 4.54 | G45: per m2 | H45: + per m1 sleuflengte | J45: =$F$18 -> 15.92 | K45: > 15 m2 | L45: =+$F$19 -> 1.43 | M45: per m2
C46: B4 | D46: tegels | E46: > 15 m2 | F46: =$I$16 -> 2.73 | G46: per m2 | H46: + per m1 sleuflengte | J46: =$I$18 -> 9.65 | K46: > 15 m2 | L46: =+$I$19 -> 1.07 | M46: per m2
C47: B7 | D47: trottoirband | F47: 0 | G47: per m1 | H47: n.v.t | J47: 0 | L47: =$K$19 -> 0.65 | M47: per m1
C48: B8 | D48: opsluit/koprolband | F48: 0 | G48: per m1 | H48: n.v.t. | J48: 0 | L48: =$L$19 -> 0.52 | M48: per m1
A50: Tarief: C. | B50: Herstel door de gemeente voorafgaand aan gehele herbestrating. | H50: Beheerskosten:
C52: C1 | D52: klinkers | E52: < 15 m2 | F52: =($E$15/2)/1.2+$E$16 -> 17.72083333 | G52: per m2 | H52: < 15 m2 | I52: =+$E$19 -> 1.75 | J52: per m2
C53: C2 | D53: tegels | E53: < 15 m2 | F53: =($H$15/2)/1.2+$H$16 -> 13.21083333 | G53: per m2 | H53: < 15 m2 | I53: =+$H$19 -> 1.39 | J53: per m2
C54: C3 | D54: klinkers | E54: > 15 m2 | F54: =($F$15/2)/1.2+$F$16 -> 14.49 | G54: per m2 | H54: > 15 m2 | I54: =+$F$19 -> 1.43 | J54: per m2
C55: C4 | D55: tegels | E55: > 15 m2 | F55: =($I$15/2)/1.2+$I$16 -> 10.17583333 | G55: per m2 | H55: > 15 m2 | I55: =+$I$19 -> 1.07 | J55: per m2
C56: C7 | D56: trottoirband | F56: =($K$15/2)/1.2 -> 4.5375 | G56: per m1 | I56: =$K$19 -> 0.65 | J56: per m1
C57: C8 | D57: opsluit/koprolband | F57: =($L$15/2)/1.2 -> 3.6125 | G57: per m1 | I57: =$L$19 -> 0.52 | J57: per m1
A59: Tarief: C1 | B59: Herstel en onderhoud door de aanbieder ( 12 maanden garantie) voorafgaand aan gehele herbestrating. | H59: Beheerskosten:
C61: C1 | D61: klinkers | E61: < 15 m2 | F61: 0 | G61: per m2 | H61: < 15 m2 | I61: =+$E$19 -> 1.75 | J61: per m2
C62: C2 | D62: tegels | E62: < 15 m2 | F62: 0 | G62: per m2 | H62: < 15 m2 | I62: =+$H$19 -> 1.39 | J62: per m2
C63: C3 | D63: klinkers | E63: > 15 m2 | F63: 0 | G63: per m2 | H63: > 15 m2 | I63: =+$F$19 -> 1.43 | J63: per m2
C64: C4 | D64: tegels | E64: > 15 m2 | F64: 0 | G64: per m2 | H64: > 15 m2 | I64: =+$I$19 -> 1.07 | J64: per m2
C65: C7 | D65: trottoirband | F65: 0 | G65: per m1 | I65: =$K$19 -> 0.65 | J65: per m1
C66: C8 | D66: opsluit/koprolband | F66: 0 | G66: per m1 | I66: =$L$19 -> 0.52 | J66: per m1
A68: Tarief: C2 | B68: Herstel door de aanbieder (12 mnd.garantie) en onderhoud door de gemeente voorafgaand aan gehele herbestrating. | H68: Beheerskosten:
C70: C1 | D70: klinkers | E70: < 15 m2 | F70: =($E$16) -> 5.55 | G70: per m2 | H70: < 15 m2 | I70: =+$E$19 -> 1.75 | J70: per m2
C71: C2 | D71: tegels | E71: < 15 m2 | F71: =$H$16 -> 3.54 | G71: per m2 | H71: < 15 m2 | I71: =+$H$19 -> 1.39 | J71: per m2
C72: C3 | D72: klinkers | E72: > 15 m2 | F72: =$F$16 -> 4.54 | G72: per m2 | H72: > 15 m2 | I72: =+$F$19 -> 1.43 | J72: per m2
C73: C4 | D73: tegels | E73: > 15 m2 | F73: =$I$16 -> 2.73 | G73: per m2 | H73: > 15 m2 | I73: =+$I$19 -> 1.07 | J73: per m2
C74: C7 | D74: trottoirband | F74: 0 | G74: per m1 | I74: =$K$19 -> 0.65 | J74: per m1
C75: C8 | D75: opsluit/koprolband | F75: 0 | G75: per m1 | I75: =$L$19 -> 0.52 | J75: per m1
A77: Tarief: D. | B77: Overige tarieven, herstel door de gemeente of netbeheerder zoals aangegeven | I77: Beheerskosten
C79: D3 | D79: berm / gazon, herstel door gemeente | H79: =M15 -> 1.85 | I79: =M19 -> 0.11 | J79: per m2
C80: D4 | D80: berm / gazon, herstel door aanbieder | H80: 0 | I80: =M19 -> 0.11 | J80: per m2
C81: D5 | D81: bomen en struiken | H81: werkelijke kosten
C82: D6 | D82: asfalt | H82: werkelijke kosten
A84: BTW is niet verschuldigd. Zie: Besluit van de Staatsecretaris van Financien dd 19 februari 2004, nr. CPP2003/3098M.
A85: Het tarief oppervlak (m2) straatwerk of berm wordt bepaaldt door vermeningvuldiging van lengte x breedte van de sleuf of lasgat ( gatvergroting zit in tarief)
A86: Per project is het aantal m2 op de straatwerkbon bepalend voor de toepassing van tarief <15 m2 of > 15 m2. Klinkers en tegels mogen niet bijelkaar worden opgeteld
A87: Meerdere kleine opbrekingen binnen 10 meter, aan één wegkant, worden aangemerkt als één reparatie.
A89: Wijzigingen per 1-1-2018:
A90: - Deze tarieven kunnen ook voor netbeheerders, niet zijnde een aanbieder van een elektronisch communicatienet werk worden toegepast, in welk geval 'aanbieder' ook staat voor 'netbeheerder';
A91: - Tarieven voor triottoir-, oplsluit/koprolband verplaatst van tarief D naar A, B1, B2, C, C1 en C2;
A92: - Naast Tarief C (herstel vooruitlopend aan herbestrating) is toegevoegd C1 (bij herstel en onderhoud door aanbieder) en C2 (herstel door aanbieder en onderhoud door gemeente). Deze C-tarieven gelden alleen indien vooraf afgestemd en de aanbieder maximaal 1 jaar voor de geplande uitvoering van de algehele herbestrating werkt.
A93: - Toegevoegd is een richtlijn voor het hanteren van de tarieven indien 'van band tot band' bestraat wordt (tarieven A, B1 en B2 delen door 1,2 en geen degeneratiekosten berekenen). Er is afgezien van het formaliseren van aparte tarieven voor deze gevallen.
A94: - Bermen/gazon: uitvoeringskosten per m2 herberekend, tarief t/m 50m2 vervallen (alleen nog per m2), 2 varianten: herstel door gemeente en herstel door netbeheerder.

Sheet Tabel Tarieven
A1: Kostensoort | B1: Tariefgroepen | I1: Omschrijving | J1: Eenheid | K1: ="Bedragen "&'Invoerblad tarieven'!G3 & " per kostensoort per bodemcategorie" -> Bedragen 2018 v1 per kostensoort per bodemcategorie
A2: Uitvoeringskosten | B2: X in kolom is van toepassing bij deze tariefgroep | I2: Klinkers, tegels, trottoirband, opsluit/koprolband, berm/gazon. Eenheid: per m2, m1, bij degeneratie per reparatie of m1 sleuf | K2: Afh. Cat.?: | L2: Bij nee zijn de tarieven gelijk in elke kolom: onafhankelijk categorie
A3: Onderhoudskosten | K3: > Zie > tabblad >>>> | L3: < 50% slechte bodem | M3: 50-60% slechte bodem | N3: 60-70% slechte bodem | O3: 70-80% slechte bodem | P3: > 80% slechte bodem
A4: Degeneratiekosten
A5: Beheerkosten | B5: A | C5: B1 | D5: B2 | E5: C | F5: C1 | G5: C2 | H5: D | K5: Afh. Cat.? | L5: 1 | M5: 2 | N5: 3 | O5: 4 | P5: 5
A6: Uitvoeringskosten | B6: X | I6: klinkers <= 15 m2 | J6: m2 | K6: Nee | L6: ='< 50% slechte bodem'!$E$15 -> 29.21 | M6: ='< 50% slechte bodem'!$E$15 -> 29.21 | N6: ='60-70% slechte bodem'!$E$15 -> 29.21 | O6: ='< 50% slechte bodem'!$E$15 -> 29.21 | P6: ='< 50% slechte bodem'!$E$15 -> 29.21
A7: Uitvoeringskosten | B7: X | I7: klinkers >15 m2 | J7: m2 | K7: Nee | L7: ='< 50% slechte bodem'!$F$15 -> 23.88 | M7: ='50-60% slechte bodem'!$F$15 -> 23.88 | N7: ='60-70% slechte bodem'!$F$15 -> 23.88 | O7: ='70-80% slechte bodem'!$F$15 -> 23.88 | P7: ='> 80% slechte bodem'!$F$15 -> 23.88
A8: Uitvoeringskosten | B8: X | I8: klinkers >100 m2 | J8: m2 | K8: Nee | L8: ='< 50% slechte bodem'!$G$15 -> 21.22 | M8: ='50-60% slechte bodem'!$G$15 -> 21.22 | N8: ='60-70% slechte bodem'!$G$15 -> 21.22 | O8: ='70-80% slechte bodem'!$G$15 -> 21.22 | P8: ='> 80% slechte bodem'!$G$15 -> 21.22
A9: Uitvoeringskosten | B9: X | I9: tegels <= 15 m2 | J9: m2 | K9: Nee | L9: ='< 50% slechte bodem'!$H$15 -> 23.21 | M9: ='50-60% slechte bodem'!$H$15 -> 23.21 | N9: ='60-70% slechte bodem'!$H$15 -> 23.21 | O9: ='70-80% slechte bodem'!$H$15 -> 23.21 | P9: ='> 80% slechte bodem'!$H$15 -> 23.21
A10: Uitvoeringskosten | B10: X | I10: tegels >15 m2 | J10: m2 | K10: Nee | L10: ='< 50% slechte bodem'!$I$15 -> 17.87 | M10: ='50-60% slechte bodem'!$I$15 -> 17.87 | N10: ='60-70% slechte bodem'!$I$15 -> 17.87 | O10: ='70-80% slechte bodem'!$I$15 -> 17.87 | P10: ='> 80% slechte bodem'!$I$15 -> 17.87
A11: Uitvoeringskosten | B11: X | I11: tegels >100 m2 | J11: m2 | K11: Nee | L11: ='< 50% slechte bodem'!$J$15 -> 16.8 | M11: ='50-60% slechte bodem'!$J$15 -> 16.8 | N11: ='60-70% slechte bodem'!$J$15 -> 16.8 | O11: ='70-80% slechte bodem'!$J$15 -> 16.8 | P11: ='> 80% slechte bodem'!$J$15 -> 16.8
A12: Uitvoeringskosten | B12: X | I12: trottoirband | J12: m1 | K12: Nee | L12: ='< 50% slechte bodem'!$K$15 -> 10.89 | M12: ='50-60% slechte bodem'!$K$15 -> 10.89 | N12: ='60-70% slechte bodem'!$K$15 -> 10.89 | O12: ='70-80% slechte bodem'!$K$15 -> 10.89 | P12: ='> 80% slechte bodem'!$K$15 -> 10.89
A13: Uitvoeringskosten | B13: X | I13: opsluit/koprolband | J13: m1 | K13: Nee | L13: ='< 50% slechte bodem'!$L$15 -> 8.67 | M13: ='50-60% slechte bodem'!$L$15 -> 8.67 | N13: ='60-70% slechte bodem'!$L$15 -> 8.67 | O13: ='70-80% slechte bodem'!$L$15 -> 8.67 | P13: ='> 80% slechte bodem'!$L$15 -> 8.67
A14: Uitvoeringskosten | E14: X | I14: klinkers <= 15 m2 | J14: m2 | K14: Nee | L14: =ROUND('< 50% slechte bodem'!$E$15/2/1.2,2) -> 12.17 | M14: =ROUND('50-60% slechte bodem'!$E$15/2/1.2,2) -> 12.17 | N14: =ROUND('60-70% slechte bodem'!$E$15/2/1.2,2) -> 12.17 | O14: =ROUND('70-80% slechte bodem'!$E$15/2/1.2,2) -> 12.17 | P14: =ROUND('> 80% slechte bodem'!$E$15/2/1.2,2) -> 12.17
A15: Uitvoeringskosten | E15: X | I15: klinkers >15 m2 | J15: m2 | K15: Nee | L15: =ROUND('< 50% slechte bodem'!$F$15/2/1.2,2) -> 9.95 | M15: =ROUND('50-60% slechte bodem'!$F$15/2/1.2,2) -> 9.95 | N15: =ROUND('60-70% slechte bodem'!$F$15/2/1.2,2) -> 9.95 | O15: =ROUND('70-80% slechte bodem'!$F$15/2/1.2,2) -> 9.95 | P15: =ROUND('> 80% slechte bodem'!$F$15/2/1.2,2) -> 9.95
A16: Uitvoeringskosten | E16: X | I16: tegels <= 15 m2 | J16: m2 | K16: Nee | L16: =ROUND('< 50% slechte bodem'!$H$15/2/1.2,2) -> 9.67 | M16: =ROUND('50-60% slechte bodem'!$H$15/2/1.2,2) -> 9.67 | N16: =ROUND('60-70% slechte bodem'!$H$15/2/1.2,2) -> 9.67 | O16: =ROUND('70-80% slechte bodem'!$H$15/2/1.2,2) -> 9.67 | P16: =ROUND('> 80% slechte bodem'!$H$15/2/1.2,2) -> 9.67
A17: Uitvoeringskosten | E17: X | I17: tegels >15 m2 | J17: m2 | K17: Nee | L17: =ROUND('< 50% slechte bodem'!$I$15/2/1.2,2) -> 7.45 | M17: =ROUND('50-60% slechte bodem'!$I$15/2/1.2,2) -> 7.45 | N17: =ROUND('60-70% slechte bodem'!$I$15/2/1.2,2) -> 7.45 | O17: =ROUND('70-80% slechte bodem'!$I$15/2/1.2,2) -> 7.45 | P17: =ROUND('> 80% slechte bodem'!$I$15/2/1.2,2) -> 7.45
A18: Uitvoeringskosten | E18: X | I18: trottoirband | J18: m1 | K18: Nee | L18: =ROUND('< 50% slechte bodem'!$K$15/2/1.2,2) -> 4.54 | M18: =ROUND('50-60% slechte bodem'!$K$15/2/1.2,2) -> 4.54 | N18: =ROUND('60-70% slechte bodem'!$K$15/2/1.2,2) -> 4.54 | O18: =ROUND('70-80% slechte bodem'!$K$15/2/1.2,2) -> 4.54 | P18: =ROUND('> 80% slechte bodem'!$K$15/2/1.2,2) -> 4.54
A19: Uitvoeringskosten | E19: X | I19: opsluit/koprolband | J19: m1 | K19: Nee | L19: =ROUND('< 50% slechte bodem'!$L$15/2/1.2,2) -> 3.61 | M19: =ROUND('50-60% slechte bodem'!$L$15/2/1.2,2) -> 3.61 | N19: =ROUND('60-70% slechte bodem'!$L$15/2/1.2,2) -> 3.61 | O19: =ROUND('70-80% slechte bodem'!$L$15/2/1.2,2) -> 3.61 | P19: =ROUND('> 80% slechte bodem'!$L$15/2/1.2,2) -> 3.61
A20: Uitvoeringskosten | H20: X | I20: berm / gazon, herstel door gemeente | J20: m2 | K20: Nee | L20: ='< 50% slechte bodem'!$M$15 -> 1.85 | M20: ='50-60% slechte bodem'!$M$15 -> 1.85 | N20: ='60-70% slechte bodem'!$M$15 -> 1.85 | O20: ='70-80% slechte bodem'!$M$15 -> 1.85 | P20: ='> 80% slechte bodem'!$M$15 -> 1.85
A21: Onderhoudskosten | B21: X | D21: X | G21: X | I21: klinkers <= 15 m2 | J21: m2 | K21: Ja | L21: ='< 50% slechte bodem'!$E$16 -> 2.16 | M21: ='50-60% slechte bodem'!$E$16 -> 2.44 | N21: ='60-70% slechte bodem'!$E$16 -> 3.27 | O21: ='70-80% slechte bodem'!$E$16 -> 4.98 | P21: ='> 80% slechte bodem'!$E$16 -> 5.55
A22: Onderhoudskosten | B22: X | D22: X | G22: X | I22: klinkers >15 m2 | J22: m2 | K22: Ja | L22: ='< 50% slechte bodem'!$F$16 -> 1.77 | M22: ='50-60% slechte bodem'!$F$16 -> 1.99 | N22: ='60-70% slechte bodem'!$F$16 -> 2.67 | O22: ='70-80% slechte bodem'!$F$16 -> 4.07 | P22: ='> 80% slechte bodem'!$F$16 -> 4.54
A23: Onderhoudskosten | B23: X | I23: klinkers >100 m2 (alleen tarief A) | J23: m2 | K23: Ja | L23: ='< 50% slechte bodem'!$G$16 -> 1.57 | M23: ='50-60% slechte bodem'!$G$16 -> 1.77 | N23: ='60-70% slechte bodem'!$G$16 -> 2.38 | O23: ='70-80% slechte bodem'!$G$16 -> 3.62 | P23: ='> 80% slechte bodem'!$G$16 -> 4.03
A24: Onderhoudskosten | B24: X | D24: X | G24: X | I24: tegels <= 15 m2 | J24: m2 | K24: Ja | L24: ='< 50% slechte bodem'!$H$16 -> 1.2 | M24: ='50-60% slechte bodem'!$H$16 -> 1.37 | N24: ='60-70% slechte bodem'!$H$16 -> 1.9 | O24: ='70-80% slechte bodem'!$H$16 -> 3.13 | P24: ='> 80% slechte bodem'!$H$16 -> 3.54
A25: Onderhoudskosten | B25: X | D25: X | G25: X | I25: tegels >15 m2 | J25: m2 | K25: Ja | L25: ='< 50% slechte bodem'!$I$16 -> 0.92 | M25: ='50-60% slechte bodem'!$I$16 -> 1.06 | N25: ='60-70% slechte bodem'!$I$16 -> 1.47 | O25: ='70-80% slechte bodem'!$I$16 -> 2.41 | P25: ='> 80% slechte bodem'!$I$16 -> 2.73
A26: Onderhoudskosten | B26: X | I26: tegels >100 m2 | J26: m2 | K26: Ja | L26: ='< 50% slechte bodem'!$J$16 -> 0.87 | M26: ='50-60% slechte bodem'!$J$16 -> 0.99 | N26: ='60-70% slechte bodem'!$J$16 -> 1.38 | O26: ='70-80% slechte bodem'!$J$16 -> 2.27 | P26: ='> 80% slechte bodem'!$J$16 -> 2.56
A27: Degeneratiekosten | B27: X | C27: X | D27: X | I27: klinkers <= 15 m2 | J27: reparatie | K27: Ja | L27: ='< 50% slechte bodem'!$E$17 -> 7.89 | M27: ='50-60% slechte bodem'!$E$17 -> 11.09 | N27: ='60-70% slechte bodem'!$E$17 -> 20.71 | O27: ='70-80% slechte bodem'!$E$17 -> 31.8 | P27: ='> 80% slechte bodem'!$E$17 -> 38.95
A28: Degeneratiekosten | B28: X | C28: X | D28: X | I28: klinkers >15 m2 | J28: m1 sleuf | K28: Ja | L28: ='< 50% slechte bodem'!$F$18 -> 2.62 | M28: ='50-60% slechte bodem'!$F$18 -> 3.68 | N28: ='60-70% slechte bodem'!$F$18 -> 6.85 | O28: ='70-80% slechte bodem'!$F$18 -> 13.65 | P28: ='> 80% slechte bodem'!$F$18 -> 15.92
A29: Degeneratiekosten | B29: X | I29: klinkers >100 m2 (alleen tarief A) | J29: m1 sleuf | K29: Ja | L29: ='< 50% slechte bodem'!$G$18 -> 2.33 | M29: ='50-60% slechte bodem'!$G$18 -> 3.27 | N29: ='60-70% slechte bodem'!$G$18 -> 6.09 | O29: ='70-80% slechte bodem'!$G$18 -> 12.13 | P29: ='> 80% slechte bodem'!$G$18 -> 14.15
A30: Degeneratiekosten | B30: X | C30: X | D30: X | I30: tegels <= 15 m2 | J30: reparatie | K30: Ja | L30: ='< 50% slechte bodem'!$H$17 -> 0 | M30: ='50-60% slechte bodem'!$H$17 -> 0.78 | N30: ='60-70% slechte bodem'!$H$17 -> 3.13 | O30: ='70-80% slechte bodem'!$H$17 -> 9.01 | P30: ='> 80% slechte bodem'!$H$17 -> 10.97
A31: Degeneratiekosten | B31: X | C31: X | D31: X | I31: tegels >15 m2 | J31: m1 sleuf | K31: Ja | L31: ='< 50% slechte bodem'!$I$18 -> 0 | M31: ='50-60% slechte bodem'!$I$18 -> 0.15 | N31: ='60-70% slechte bodem'!$I$18 -> 0.6 | O31: ='70-80% slechte bodem'!$I$18 -> 7.39 | P31: ='> 80% slechte bodem'!$I$18 -> 9.65
A32: Degeneratiekosten | B32: X | I32: tegels >100 m2 | J32: m1 sleuf | K32: Ja | L32: ='< 50% slechte bodem'!$J$18 -> 0 | M32: ='50-60% slechte bodem'!$J$18 -> 0.14 | N32: ='60-70% slechte bodem'!$J$18 -> 0.57 | O32: ='70-80% slechte bodem'!$J$18 -> 6.95 | P32: ='> 80% slechte bodem'!$J$18 -> 9.07
A33: Beheerskosten | B33: X | C33: X | D33: X | E33: X | F33: X | G33: X | I33: klinkers <= 15 m2 | J33: m2 | K33: Nee | L33: ='< 50% slechte bodem'!$E$19 -> 1.75 | M33: ='50-60% slechte bodem'!$E$19 -> 1.75 | N33: ='60-70% slechte bodem'!$E$19 -> 1.75 | O33: ='70-80% slechte bodem'!$E$19 -> 1.75 | P33: ='> 80% slechte bodem'!$E$19 -> 1.75
A34: Beheerskosten | B34: X | C34: X | D34: X | E34: X | F34: X | G34: X | I34: klinkers >15 m2 | J34: m2 | K34: Nee | L34: ='< 50% slechte bodem'!$F$19 -> 1.43 | M34: ='50-60% slechte bodem'!$F$19 -> 1.43 | N34: ='60-70% slechte bodem'!$F$19 -> 1.43 | O34: ='70-80% slechte bodem'!$F$19 -> 1.43 | P34: ='> 80% slechte bodem'!$F$19 -> 1.43
A35: Beheerskosten | B35: X | C35: X | D35: X | E35: X | F35: X | G35: X | I35: klinkers >100 m2 (alleen tarief A) | J35: m2 | K35: Nee | L35: ='< 50% slechte bodem'!$G$19 -> 1.27 | M35: ='50-60% slechte bodem'!$G$19 -> 1.27 | N35: ='60-70% slechte bodem'!$G$19 -> 1.27 | O35: ='70-80% slechte bodem'!$G$19 -> 1.27 | P35: ='> 80% slechte bodem'!$G$19 -> 1.27
A36: Beheerskosten | B36: X | C36: X | D36: X | E36: X | F36: X | G36: X | I36: tegels <= 15 m2 | J36: m2 | K36: Nee | L36: ='< 50% slechte bodem'!$H$19 -> 1.39 | M36: ='50-60% slechte bodem'!$H$19 -> 1.39 | N36: ='60-70% slechte bodem'!$H$19 -> 1.39 | O36: ='70-80% slechte bodem'!$H$19 -> 1.39 | P36: ='> 80% slechte bodem'!$H$19 -> 1.39
A37: Beheerskosten | B37: X | C37: X | D37: X | E37: X | F37: X | G37: X | I37: tegels >15 m2 | J37: m2 | K37: Nee | L37: ='< 50% slechte bodem'!$I$19 -> 1.07 | M37: ='50-60% slechte bodem'!$I$19 -> 1.07 | N37: ='60-70% slechte bodem'!$I$19 -> 1.07 | O37: ='70-80% slechte bodem'!$I$19 -> 1.07 | P37: ='> 80% slechte bodem'!$I$19 -> 1.07
A38: Beheerskosten | B38: X | C38: X | D38: X | E38: X | F38: X | G38: X | I38: tegels >100 m2 | J38: m2 | K38: Nee | L38: ='< 50% slechte bodem'!$J$19 -> 1.01 | M38: ='50-60% slechte bodem'!$J$19 -> 1.01 | N38: ='60-70% slechte bodem'!$J$19 -> 1.01 | O38: ='70-80% slechte bodem'!$J$19 -> 1.01 | P38: ='> 80% slechte bodem'!$J$19 -> 1.01
A39: Beheerskosten | B39: X | C39: X | D39: X | E39: X | F39: X | G39: X | I39: trottoirband | J39: m1 | K39: Nee | L39: ='< 50% slechte bodem'!$K$19 -> 0.65 | M39: ='50-60% slechte bodem'!$K$19 -> 0.65 | N39: ='60-70% slechte bodem'!$K$19 -> 0.65 | O39: ='70-80% slechte bodem'!$K$19 -> 0.65 | P39: ='> 80% slechte bodem'!$K$19 -> 0.65
A40: Beheerskosten | B40: X | C40: X | D40: X | E40: X | F40: X | G40: X | I40: opsluit/koprolband | J40: m1 | K40: Nee | L40: ='< 50% slechte bodem'!$L$19 -> 0.52 | M40: ='50-60% slechte bodem'!$L$19 -> 0.52 | N40: ='60-70% slechte bodem'!$L$19 -> 0.52 | O40: ='70-80% slechte bodem'!$L$19 -> 0.52 | P40: ='> 80% slechte bodem'!$L$19 -> 0.52
A41: Beheerskosten | H41: X | I41: berm / gazon, herstel door gemeente | J41: m2 | K41: Nee | L41: ='< 50% slechte bodem'!$M$19 -> 0.11 | M41: ='50-60% slechte bodem'!$M$19 -> 0.11 | N41: ='60-70% slechte bodem'!$M$19 -> 0.11 | O41: ='70-80% slechte bodem'!$M$19 -> 0.11 | P41: ='> 80% slechte bodem'!$M$19 -> 0.11
A42: Beheerskosten | H42: X | I42: berm / gazon, herstel door gem of aanb | J42: m2 | K42: Nee | L42: ='< 50% slechte bodem'!$M$19 -> 0.11 | M42: ='50-60% slechte bodem'!$M$19 -> 0.11 | N42: ='60-70% slechte bodem'!$M$19 -> 0.11 | O42: ='70-80% slechte bodem'!$M$19 -> 0.11 | P42: ='> 80% slechte bodem'!$M$19 -> 0.11
A45: De bedragen (L6..P42) vanuit deze brontabel kopiëren (met plakken - waarde) naar het tabblad "Tabel Tarieven" van bestand richtlijn-tarieven-graaf-werkzaamheden xxxx Kopieer ook K1 naar K1 (plakken waarde).
Q521: 2.14 | R521: 7.81 | S521: 0 | T521: 1.74
Q522: 1.75 | R522: 0 | S522: 2.59 | T522: 1.42
Q523: 1.55 | R523: 0 | S523: 2.3 | T523: 1.26
Q524: 1.18 | R524: 0 | S524: 0 | T524: 1.37
Q525: 0.91 | R525: 0 | S525: 0 | T525: 1.06
Q526: 0.85 | R526: 0 | S526: 0 | T526: 0.99
T527: 0.65
T528: 0.51
R529: 7.81 | S529: 0 | T529: 1.74
R530: 0 | S530: 2.59 | T530: 1.42
R531: 0 | S531: 0 | T531: 1.37
R532: 0 | S532: 0 | T532: 1.06
T533: 0.65
T534: 0.51
Q535: 2.14 | R535: 7.81 | S535: 0 | T535: 1.74
Q536: 1.75 | R536: 0 | S536: 2.59 | T536: 1.42
Q537: 1.18 | R537: 0 | S537: 0 | T537: 1.37
Q538: 0.91 | R538: 0 | S538: 0 | T538: 1.06
T539: 0.65
T540: 0.51
Q541: 2.14 | T541: 1.74
Q542: 1.75 | T542: 1.42
Q543: 1.18 | T543: 1.37
Q544: 0.91 | T544: 1.06
T545: 0.65
T546: 0.51
T547: 1.74
T548: 1.42
T549: 1.37
T550: 1.06
T551: 0.65
T552: 0.51
Q553: 2.14 | T553: 1.74
Q554: 1.75 | T554: 1.42
Q555: 1.18 | T555: 1.37
Q556: 0.91 | T556: 1.06
T557: 0.65
T558: 0.51
T559: 0.11
T560: 0.11
Q561: 2.41 | R561: 10.98 | S561: 0 | T561: 1.74
Q562: 1.97 | R562: 0 | S562: 3.64 | T562: 1.42
Q563: 1.75 | R563: 0 | S563: 3.24 | T563: 1.26
Q564: 1.35 | R564: 0.77 | S564: 0 | T564: 1.37
Q565: 1.04 | R565: 0 | S565: 0.15 | T565: 1.06
Q566: 0.98 | R566: 0 | S566: 0.14 | T566: 0.99
R567: 10.98 | S567: 0 | T567: 1.74
R568: 0 | S568: 3.64 | T568: 1.42
R569: 0.77 | S569: 0 | T569: 1.37
R570: 0 | S570: 0.15 | T570: 1.06
Q571: 2.41 | R571: 10.98 | S571: 0 | T571: 1.74
Q572: 1.97 | R572: 0 | S572: 3.64 | T572: 1.42
Q573: 1.35 | R573: 0.77 | S573: 0 | T573: 1.37
Q574: 1.04 | R574: 0 | S574: 0.15 | T574: 1.06
Q575: 2.41 | T575: 1.74
Q576: 1.97 | T576: 1.42
Q577: 1.35 | T577: 1.37
Q578: 1.04 | T578: 1.06
T579: 1.74
T580: 1.42
T581: 1.37
T582: 1.06
Q583: 2.41 | T583: 1.74
Q584: 1.97 | T584: 1.42
Q585: 1.35 | T585: 1.37
Q586: 1.04 | T586: 1.06
Q587: 3.24 | R587: 20.5 | S587: 0 | T587: 1.74
Q588: 2.65 | R588: 0 | S588: 6.79 | T588: 1.42
Q589: 2.35 | R589: 0 | S589: 6.03 | T589: 1.26
Q590: 1.88 | R590: 3.09 | S590: 0 | T590: 1.37
Q591: 1.45 | R591: 0 | S591: 0.6 | T591: 1.06
Q592: 1.36 | R592: 0 | S592: 0.56 | T592: 0.99
R593: 20.5 | S593: 0 | T593: 1.74
R594: 0 | S594: 6.79 | T594: 1.42
R595: 3.09 | S595: 0 | T595: 1.37
R596: 0 | S596: 0.6 | T596: 1.06
Q597: 3.24 | R597: 20.5 | S597: 0 | T597: 1.74
Q598: 2.65 | R598: 0 | S598: 6.79 | T598: 1.42
Q599: 1.88 | R599: 3.09 | S599: 0 | T599: 1.37
Q600: 1.45 | R600: 0 | S600: 0.6 | T600: 1.06
Q601: 3.24 | T601: 1.74
Q602: 2.65 | T602: 1.42
Q603: 1.88 | T603: 1.37
Q604: 1.45 | T604: 1.06
T605: 1.74
T606: 1.42
T607: 1.37
T608: 1.06
Q609: 3.24 | T609: 1.74
Q610: 2.65 | T610: 1.42
Q611: 1.88 | T611: 1.37
Q612: 1.45 | T612: 1.06
Q613: 4.93 | R613: 31.48 | S613: 0 | T613: 1.74
Q614: 4.03 | R614: 0 | S614: 13.52 | T614: 1.42
Q615: 3.58 | R615: 0 | S615: 12.01 | T615: 1.26
Q616: 3.09 | R616: 8.89 | S616: 0 | T616: 1.37
Q617: 2.38 | R617: -,-- | S617: 7.29 | T617: 1.06
Q618: 2.24 | R618: 0 | S618: 6.86 | T618: 0.99
R619: 31.48 | S619: 0 | T619: 1.74
R620: 0 | S620: 13.52 | T620: 1.42
R621: 8.89 | S621: 0 | T621: 1.37
R622: -,-- | S622: 7.29 | T622: 1.06
Q623: 4.93 | R623: 31.48 | S623: 0 | T623: 1.74
Q624: 4.03 | R624: 0 | S624: 13.52 | T624: 1.42
Q625: 3.09 | R625: 8.89 | S625: 0 | T625: 1.37
Q626: 2.38 | R626: -,-- | S626: 7.29 | T626: 1.06
Q627: 4.93 | T627: 1.74
Q628: 4.03 | T628: 1.42
Q629: 3.09 | T629: 1.37
Q630: 2.38 | T630: 1.06
T631: 1.74
T632: 1.42
T633: 1.37
T634: 1.06
Q635: 4.93 | T635: 1.74
Q636: 4.03 | T636: 1.42
Q637: 3.09 | T637: 1.37
Q638: 2.38 | T638: 1.06
Q639: 5.49 | R639: 38.56 | S639: 0 | T639: 1.74
Q640: 4.49 | R640: 0 | S640: 15.77 | T640: 1.42
Q641: 3.99 | R641: 0 | S641: 14.01 | T641: 1.26
Q642: 3.49 | R642: 10.83 | S642: 0 | T642: 1.37
Q643: 2.69 | R643: 0 | S643: 9.53 | T643: 1.06
Q644: 2.53 | R644: 0 | S644: 8.95 | T644: 0.99
R645: 38.56 | S645: 0 | T645: 1.74
R646: 0 | S646: 15.77 | T646: 1.42
R647: 10.83 | S647: 0 | T647: 1.37
R648: 0 | S648: 9.53 | T648: 1.06
Q649: 5.49 | R649: 38.56 | S649: 0 | T649: 1.74
Q650: 4.49 | R650: 0 | S650: 15.77 | T650: 1.42
Q651: 3.49 | R651: 10.83 | S651: 0 | T651: 1.37
Q652: 2.69 | R652: 0 | S652: 9.53 | T652: 1.06
Q653: 5.49 | T653: 1.74
Q654: 4.49 | T654: 1.42
Q655: 3.49 | T655: 1.37
Q656: 2.69 | T656: 1.06
T657: 1.74
T658: 1.42
T659: 1.37
T660: 1.06
Q661: 5.49 | T661: 1.74
Q662: 4.49 | T662: 1.42
Q663: 3.49 | T663: 1.37
Q664: 2.69 | T664: 1.06
